Cogmind - Beta 17 @@@ ROGUE MODE // 2026.07.03 @ 12:32:02 // Winter2019/RPGLIKE Player: Gallgagger Result: Self-destructed Performance ------------- Evolutions (5) 2500 Regions Visited (31) 6200 Robots Destroyed (1207) 6035 Value Destroyed (53860) 53860 Prototype IDs (65) 1300 Alien Tech Used (0) 0 Bonus (43638) 43638 TOTAL SCORE: 113533 Bonus ------- Triggered High Security 2000 High Alert Combat Kills 29810 Follower Combat Kills 2375 Hunted by Unchained 2000 Destroyed Unchained 2000 Entered Garrisons 400 Met Data Miner 300 Acquired ECA 300 Met Warlord at Base 500 MAIN.C Attacked Warlord 500 Warlord Defense Kills 3944 Friendly Fire -491 Cogmind --------- Core Integrity 700/700 Matter 300/300 Energy 59/970 System Corruption 0% Temperature Cool (3) Movement Flying (30) Location -5/Warlord Parts ------- > --- POWER (2) -------- Micro Fission Core Light Antimatter Reactor > --- PROPULSION (5) --- Cooled Nuclear Pulse Thruster Cooled Nuclear Pulse Thruster Electron Diverter Electron Diverter Improved Q-thruster > --- UTILITY (9) ------ V4-D3R's Forcewell Advanced Signal Interpreter Experimental Melee Analysis Suite Femtoactuators Experimental Reaction Control System Graphene Brace Remote Force Field Advanced System Restoration Module > --- WEAPON (4) ------- V4-D3R's Sabre V4-D3R's Sabre > --- INVENTORY (5) ---- Protomatter-74 Backup Power III Micro Fission Core Segregator GAL Module Peak State ------------ > --- POWER ------------ Backup Power III Micro Fission Core > --- PROPULSION ------- Electron Diverter Electron Diverter Improved Q-thruster Improved Q-thruster Improved Q-thruster > --- UTILITY ---------- V4-D3R's Forcewell Advanced Signal Interpreter Experimental Melee Analysis Suite Femtoactuators Experimental Reaction Control System Experimental Cloaking Device Graphene Brace Remote Force Field Advanced System Restoration Module > --- WEAPON ----------- Improved Plasma Cutter V4-D3R's Forcegen V4-D3R's Sabre V4-D3R's Sabre > --- INVENTORY -------- Protomatter Protomatter Advanced Gravity Neutralizer Segregator GAL Module [Rating: 170] Favorites ----------- Power Light Angular Momentum Engine Engine Light Angular Momentum Engine Power Core Light Fission Core Reactor Light Antimatter Reactor Propulsion Improved VTOL Module Wheel Wheel Flight Unit Improved VTOL Module Utility Weapon Cycler Device Weapon Cycler Storage V4-D3R's Forcewell Processor Improved Signal Interpreter Protection Medium Armor Plating Weapon Enhanced Autogun Energy Gun Particle Gun Energy Cannon Compact Ion Cannon Ballistic Gun Enhanced Autogun Ballistic Cannon Hypervelocity Mass Driver Launcher Heavy Shock Bomb Launcher Special Weapon V4-D3R's Forcegen Slashing Weapon V4-D3R's Sabre Build | -11 -10 -10 -9 -9 -9 -8 -8 -8 -8 -8 -8 -7 -7 -7 -7 -7 -7 -6 -6 -6 -6 -6 -6 -6 -5 -5 -5 -5 -5 -5 -5 ------- Run | Yrd Mat Min Mat Min Exi Min Mat Gar Mat Gar Mat Fac Was Fac Low Low Dat Pro Fac Was Fac Low Low Zio Pro Fac Was Fac Upp Upp War Slots Evolved 16 | 3 4 . 3 1 . . . . 1 . . . . 2 . . . . 1 . . . . . . 1 . . . . . Power 1 | . . . . 1 . . . . . . . . . . . . . . . . . . . . . . . . . . . Propulsion 4 | 1 1 . 1 . . . . . . . . . . . . . . . . . . . . . . 1 . . . . . Utility 8 | 1 1 . 2 . . . . . 1 . . . . 2 . . . . 1 . . . . . . . . . . . . Weapon 3 | 1 2 . . . . . . . . . . . . . . . . . . . . . . . . . . . . . . Parts Attached 145 | 7 11 2 8 4 . . 13 3 5 . 2 4 . 16 1 . . 1 1 1 2 . . 5 . 30 1 19 1 . 8 Power 15 | 1 . . 1 1 . . 1 1 . . . . . . . . . . . . . . . . . 5 . 4 . . 1 Engine 3 | 1 . . . . . . 1 . . . . . . . . . . . . . . . . . . . . 1 . . . Core 9 | . . . 1 1 . . . 1 . . . . . . . . . . . . . . . . . 4 . 2 . . . Reactor 3 | . . . . . . . . . . . . . . . . . . . . . . . . . . 1 . 1 . . 1 Propulsion 28 | 2 3 . 3 . . . 9 . . . . 2 . 2 . . . . . . . . . . . 5 . . . . 2 Treads . | . . . . . . . . . . . . . . . . . . . . . . . . . . . . . . . . Leg . | . . . . . . . . . . . . . . . . . . . . . . . . . . . . . . . . Wheel 2 | 2 . . . . . . . . . . . . . . . . . . . . . . . . . . . . . . . Hover . | . . . . . . . . . . . . . . . . . . . . . . . . . . . . . . . . Flight 26 | . 3 . 3 . . . 9 . . . . 2 . 2 . . . . . . . . . . . 5 . . . . 2 Utility 64 | 2 3 . 2 3 . . 1 2 1 . 1 1 . 11 1 . . 1 1 . 1 . . 1 . 15 . 12 1 . 4 Device 42 | 2 1 . . 3 . . 1 2 1 . . 1 . 9 1 . . 1 . . 1 . . 1 . 10 . 5 1 . 2 Storage 1 | . . . . . . . . . . . . . . . . . . . . . . . . . . 1 . . . . . Processor 11 | . . . . . . . . . . . 1 . . 2 . . . . 1 . . . . . . 1 . 5 . . 1 Hackware . | . . . . . . . . . . . . . . . . . . . . . . . . . . . . . . . . Protection 10 | . 2 . 2 . . . . . . . . . . . . . . . . . . . . . . 3 . 2 . . 1 Artifact . | . . . . . . . . . . . . . . . . . . . . . . . . . . . . . . . . Weapon 38 | 2 5 2 2 . . . 2 . 4 . 1 1 . 3 . . . . . 1 1 . . 4 . 5 1 3 . . 1 Energy Gun 4 | . 3 . . . . . . . . . . . . 1 . . . . . . . . . . . . . . . . . Energy Cannon 4 | . . . . . . . . . . . . . . 1 . . . . . . 1 . . . . 2 . . . . . Ballistic Gun 17 | 2 2 2 2 . . . 2 . 4 . 1 1 . 1 . . . . . . . . . . . . . . . . . Ballistic Cannon 1 | . . . . . . . . . . . . . . . . . . . . 1 . . . . . . . . . . . Launcher 2 | . . . . . . . . . . . . . . . . . . . . . . . . . . . 1 1 . . . Special Weapon 7 | . . . . . . . . . . . . . . . . . . . . . . . . 4 . 1 . 1 . . 1 Impact Weapon . | . . . . . . . . . . . . . . . . . . . . . . . . . . . . . . . . Slashing Weapon 3 | . . . . . . . . . . . . . . . . . . . . . . . . . . 2 . 1 . . . Piercing Weapon . | . . . . . . . . . . . . . . . . . . . . . . . . . . . . . . . . Special Melee Weapon . | . . . . . . . . . . . . . . . . . . . . . . . . . . . . . . . . Unidentified Prototypes 37 | . . . 1 1 . . 2 . 1 . . 1 . 4 . . . 1 . . . . . 1 . 18 1 2 . . 4 Parts Lost 16 | . . . . . . . . . . . . . . 1 . . . . . . . . . . . 8 1 5 1 . . Power 9 | . . . . . . . . . . . . . . . . . . . . . . . . . . 4 . 5 . . . Propulsion . | . . . . . . . . . . . . . . . . . . . . . . . . . . . . . . . . Utility 7 | . . . . . . . . . . . . . . 1 . . . . . . . . . . . 4 1 . 1 . . Weapon . | . . . . . . . . . . . . . . . . . . . . . . . . . . . . . . . . Highest Loss Streak 5 | . . . . . . . . . . . . . . 1 . . . . . . . . . . . 5 1 4 1 . . To Critical Strikes . | . . . . . . . . . . . . . . . . . . . . . . . . . . . . . . . . Average Backups 2 | . . 1 1 1 4 4 3 2 2 2 2 2 2 1 3 3 3 2 2 2 3 3 3 2 2 2 3 2 2 2 2 Power . | . . . . . 1 1 . . . . . . . . . . . . . . . . . . . . . . . . . Propulsion . | . . . . . . . . . . . . . . . . . . . . . . . . . . . . . . . . Utility 1 | . . 1 . 1 3 3 2 2 2 2 2 2 2 1 3 3 3 2 2 2 2 2 2 1 1 1 1 1 1 1 . Weapon . | . . . . . . . . . . . . . . . . . . . . . 1 . . . . . 2 1 1 1 1 Tool/Special . | . . . . . . . . . . . . . . . . . . . . . . . . . . . . . . . . Unused Backups 10 | . . . . . . . 1 . . 1 . . . 2 . . . . 1 . . . . . . 2 . 2 . . 1 Power 1 | . . . . . . . . . . . . . . . . . . . . . . . . . . . . . . . 1 Propulsion . | . . . . . . . . . . . . . . . . . . . . . . . . . . . . . . . . Utility 7 | . . . . . . . 1 . . 1 . . . 2 . . . . . . . . . . . 1 . 2 . . . Weapon 1 | . . . . . . . . . . . . . . . . . . . 1 . . . . . . . . . . . . Tool/Special 1 | . . . . . . . . . . . . . . . . . . . . . . . . . . 1 . . . . . Average Slot Usage (%) 98 | . 98 100 97 98 93 93 96 100 93 93 95 100 100 99 100 100 100 100 100 100 100 100 100 98 100 94 100 98 97 100 100 Engine 5 | . 12 9 7 . . . 3 6 6 6 6 6 6 5 5 5 5 5 5 5 5 5 5 5 5 3 . 8 5 5 2 Core 4 | . . . . 6 6 6 5 6 6 6 6 6 6 5 5 5 5 5 5 5 5 5 5 5 5 5 10 1 5 5 5 Flight 24 | . 21 27 26 27 26 26 26 26 25 25 25 25 25 22 22 22 22 22 21 21 21 21 21 21 21 23 25 24 25 25 25 Device 24 | . 14 18 15 15 20 20 23 26 25 25 25 25 25 25 33 33 33 33 31 31 31 31 31 31 31 20 29 25 26 30 27 Storage 1 | . . . . . . . . . . . . . . . . . . . . . . . . . . . 5 5 5 5 5 Processor 8 | . . . . . . . . . . . 2 6 6 10 11 11 11 11 13 15 15 15 15 15 15 13 5 13 10 10 10 Protection 4 | . 11 9 14 19 13 13 9 6 6 6 6 6 6 3 . . . . . . . . . . . 4 5 . . . 2 Ballistic Gun 19 | . 26 36 31 27 26 26 26 26 25 25 25 25 25 22 22 22 22 22 21 20 20 21 21 17 21 19 15 2 . . . Special Weapon 1 | . . . . . . . . . . . . . . . . . . . . . . . . 1 . 1 5 8 10 10 10 Slashing Weapon 1 | . . . . . . . . . . . . . . . . . . . . . . . . . . . . 8 10 10 10 Peak Build Rating 170 | 7 14 14 26 38 36 36 52 53 59 56 60 64 66 82 85 85 85 88 89 92 92 90 90 106 94 163 158 169 169 161 170 Average Rating 85 | 5 8 12 17 28 36 36 47 51 55 56 57 61 61 73 83 85 85 85 87 89 89 89 90 93 94 130 151 161 158 161 163 On Entrance 75 | . 7 12 14 26 36 36 36 52 53 56 56 60 62 61 82 85 85 85 85 89 90 89 90 90 94 94 158 151 169 161 161 Avg Prop Armor Cover (%) 7 | 10 8 . . . . . . . . . . . . . . . . . . . . . . . . . . 1 . . 3 Naked Turns . | . . . . . . . . . . . . . . . . . . . . . . . . . . . . . . . . Heaviest Build 65 | 9 22 22 38 38 38 38 42 43 43 43 43 43 43 43 37 37 37 37 37 46 46 37 37 56 36 65 47 47 40 40 58 Greatest Support 86 | 20 22 22 38 38 38 38 45 45 54 45 45 46 55 55 48 48 48 48 48 54 48 54 48 64 64 86 70 70 64 64 68 Greatest Overweight (x) 1 | . . . . . . . 1 . . . . . 1 . . . . . . . . . . . . . . . . . . Average Overweight (x) . | . . . . . . . . . . . . . . . . . . . . . . . . . . . . . . . . Largest Inventory Capacity 5 | 2 2 2 3 4 4 4 4 4 4 4 4 4 4 4 4 4 4 4 4 4 4 4 4 4 4 5 5 5 5 5 5 Average Capacity 4 | 2 2 2 2 3 4 4 4 4 4 4 4 4 4 4 4 4 4 4 4 4 4 4 4 4 4 4 5 5 5 5 5 Most Carried 5 | . 2 2 3 4 4 4 4 4 4 4 4 4 4 4 4 4 4 4 3 4 4 4 4 4 4 5 5 5 5 5 5 Average Carried 3 | . . 1 2 2 4 4 3 3 3 3 4 4 4 3 4 4 4 3 2 3 3 3 4 3 4 4 4 4 5 5 4 Final Capacity 5 | 2 2 2 3 4 4 4 4 4 4 4 4 4 4 4 4 4 4 4 4 4 4 4 4 4 4 5 5 5 5 5 5 Final Carried 5 | . 1 2 2 4 4 4 3 4 3 4 4 4 4 4 4 4 4 3 2 4 4 4 4 4 4 5 5 5 5 5 5 Class Distribution -------------------- 31% | Scout 30% | Scavenger-Sprinter 18% | Sprinter 5% | Scavenger-Scout 3% | Scavenger-Gunner Dominant Class ---------------- Mutant | -10/Materials Scavenger-Gunner | -10/Mines Scavenger-Sprinter | -9/Materials Scavenger-Sprinter | -9/Mines Scavenger-Sprinter | -9/Exiles Scavenger-Sprinter | -8/Mines Scavenger-Sprinter | -8/Materials Scavenger-Sprinter | -8/Garrison Scavenger-Sprinter | -8/Materials Scavenger-Sprinter | -8/Garrison Scavenger-Sprinter | -8/Materials Scavenger-Sprinter | -7/Factory Sprinter | -7/Waste Sprinter | -7/Factory Sprinter | -7/Lower Caves Sprinter | -7/Lower Caves Sprinter | -7/Data Miner Commander-Sprinter | -6/Proximity Caves Sprinter | -6/Factory Sprinter | -6/Waste Sprinter | -6/Factory Scout | -6/Lower Caves Scout | -6/Lower Caves Scout | -6/Zion Scout | -5/Proximity Caves Scout | -5/Factory Scout | -5/Waste Scout | -5/Factory Scout | -5/Upper Caves Scavenger-Scout | -5/Upper Caves Scavenger-Scout | -5/Warlord Resources | -11 -10 -10 -9 -9 -9 -8 -8 -8 -8 -8 -8 -7 -7 -7 -7 -7 -7 -6 -6 -6 -6 -6 -6 -6 -5 -5 -5 -5 -5 -5 -5 ----------- Run | Yrd Mat Min Mat Min Exi Min Mat Gar Mat Gar Mat Fac Was Fac Low Low Dat Pro Fac Was Fac Low Low Zio Pro Fac Was Fac Upp Upp War Matter Collected 32541 | 336 708 68 1286 392 . 130 1706 1022 2297 597 1927 416 282 5729 656 594 . 692 1343 269 2334 448 176 10 1668 6355 132 788 10 . 170 Remotely 1821 | 88 76 68 1286 303 . . . . . . . . . . . . . . . . . . . . . . . . . . . Salvage Created 55160 | 151 1173 25 1933 408 . 124 2530 878 2995 947 2887 644 364 7517 907 427 . 1369 2644 945 3952 243 98 . 2309 8765 . 7604 762 1198 1361 Parts 3177 | 14 80 7 160 55 . 17 132 70 140 62 201 43 4 266 45 49 . 54 150 15 295 20 29 . 153 571 . 380 51 47 67 Haulers Intercepted 29 | . . . 2 . . . 6 . 4 . 2 1 . 6 . . . 1 2 . 1 . . . . 4 . . . . . Recyclers Shooed 7 | 1 . . . . . . . . 1 . . 1 . . . . . . 1 . . . . . . 3 . . . . . Parts Field Recycled . | . . . . . . . . . . . . . . . . . . . . . . . . . . . . . . . . Retrieved Matter . | . . . . . . . . . . . . . . . . . . . . . . . . . . . . . . . . Parts Self-Destructed 447 | . . . . . . . . . . . . . . . 43 52 . 62 . . . 14 30 . 153 . . . 50 43 . Prevented . | . . . . . . . . . . . . . . . . . . . . . . . . . . . . . . . . Parts Restored . | . . . . . . . . . . . . . . . . . . . . . . . . . . . . . . . . Kills | -11 -10 -10 -9 -9 -9 -8 -8 -8 -8 -8 -8 -7 -7 -7 -7 -7 -7 -6 -6 -6 -6 -6 -6 -6 -5 -5 -5 -5 -5 -5 -5 ------- Run | Yrd Mat Min Mat Min Exi Min Mat Gar Mat Gar Mat Fac Was Fac Low Low Dat Pro Fac Was Fac Low Low Zio Pro Fac Was Fac Upp Upp War Combat Hostiles Destroyed 1046 | . 36 3 60 16 . 7 54 35 50 23 71 13 1 140 21 16 . 21 29 3 44 2 3 . 41 123 . 161 18 21 34 Melee 219 | . . . . . . . . . . . . . . . . . . . . . . . . . . . . 146 18 21 34 Guns 820 | . 36 3 60 16 . 7 54 35 50 23 71 13 1 140 21 16 . 21 29 3 44 2 3 . 41 123 . 8 . . . Cannons 1 | . . . . . . . . . . . . . . . . . . . . . . . . . . . . 1 . . . Classes Destroyed 28 | 2 3 . 5 3 . 1 2 1 . 1 . . 1 2 1 . . 1 . . 1 1 . . . . . . 1 1 1 Worker 40 | . 1 . . 1 . . . . 1 . 1 . . 3 . . . . 8 . 20 . . . . 5 . . . . . Builder 18 | . . . . 1 . . . . 1 . 1 . . . . . . . 5 . 7 . . . . 3 . . . . . Tunneler 13 | 5 . . . . . . . . 2 . . . . . . . . . 3 . 3 . . . . . . . . . . Hauler 29 | . . . 2 . . . 6 . 4 . 2 1 . 6 . . . 1 2 . 1 . . . . 4 . . . . . Recycler 18 | 1 . . . . . . . . 2 . . . . 3 . . . . 2 . 3 . . . . 7 . . . . . Minesweeper 1 | . . . . . . . . . . . . . . . . . . . . . . . . . . . . . 1 . . Mechanic 6 | . . . . . . . . . . . . . . 3 . . . . 1 . 1 . . . . 1 . . . . . Operator 6 | . . . 1 . . . . . . . . . . 1 . . . . . . 1 . . . . 2 . 1 . . . Drone 2 | . . . . . . . . . . . . . . . . . . 2 . . . . . . . . . . . . . Watcher 28 | . . . 2 . . . 1 . . . 2 1 . 1 . . . . 6 . 4 . . . . 7 . 4 . . . Swarmer 142 | . 9 3 7 6 . 6 6 12 9 . 5 . . 4 3 1 . 4 13 . 6 . . . 10 11 . 17 3 6 1 Cutter 10 | . . . . . . . 3 3 . . . . . . . . . . . . . . . . . 2 . 2 . . . Saboteur 13 | . . . . . . . . . . . . . . . . . . . . . 1 . . . . 3 . 9 . . . Grunt 460 | . 27 . 43 6 . . 29 10 26 13 36 3 . 58 14 10 . 9 8 . 18 . . . 18 59 . 43 9 5 16 Brawler 32 | . . . 2 1 . . . . 1 1 4 . . 4 2 . . . 1 . 1 . . . 3 5 . 1 2 . 4 Duelist 49 | . . . . 1 . . 1 4 . 1 9 . . 16 . 1 . 1 . . 2 . . . 2 . . 7 . 2 2 Protector 25 | . . . . 2 . . 1 . 1 . 3 . . 9 . 1 . . . . . . . . . 1 . 3 . . 4 Sentry 135 | . . . 8 . . . 12 4 12 4 12 6 . 14 1 1 . 2 2 . 7 . . . 2 12 . 33 1 2 . Demolisher 2 | . . . . . . . . . . . . . . 1 . . . . . . . . . . . . . . . . 1 Specialist 9 | . . . . . . . . 2 . . . . . 2 . . . . . . 1 . . . . 2 . . . 2 . Hunter 77 | . . . . . . 1 1 . . 2 1 1 . 14 . 1 . 2 3 . 3 . 2 . 4 10 . 24 3 2 3 Programmer 61 | . . . . . . . . . . 2 . 3 . 16 . . . . 1 . 4 . . . 1 14 . 18 . 1 1 Heavy 8 | . . . . . . . 1 . . . 1 . . 2 . . . . . . . . . . . 2 . 2 . . . Behemoth 10 | . . . . . . . . . . . . . . . 1 1 . 1 1 . 1 1 1 . 1 . . 1 . . 1 Compactor 4 | . . . . . . . . . . . . . 1 . . . . . . 3 . . . . . . . . . . . Immortal 1 | . . . . . . . . . . . . . . . . . . . . . . . . . . 1 . . . . . Striker 1 | . . . . . . . . . . . . . . . . . . . . . . . . . . . . . . . 1 Thief 1 | . . . . . . . . . . . . . . . . . . . . . . 1 . . . . . . . . . Wasp 2 | . . . . . . . . . . . . . . 1 . . . . . . 1 . . . . . . . . . . Mutant 1 | . . . . . . . . . . . . . . . . . . . . . . . . . . . . . . 1 . Best Kill Streak 35 | 4 5 3 15 11 . 3 18 6 9 13 35 3 1 27 9 14 . 11 19 2 29 1 3 . 19 17 . 23 10 9 7 Combat Bots Only 32 | . 5 3 14 9 . 3 11 6 7 13 32 3 1 26 9 14 . 11 14 2 5 1 3 . 19 15 . 23 10 9 7 Max Kills in Single Turn 3 | 1 2 2 2 2 . 2 2 3 2 2 2 1 1 2 2 2 . 2 3 1 2 1 1 . 2 3 . 2 1 2 2 Gunslinging 2 | . 1 1 1 1 . 1 1 2 1 1 1 . . 1 . 1 . 1 1 . 1 . . . 1 1 . . . . . Exploded . | . . . . . . . . . . . . . . . . . . . . . . . . . . . . . . . . Melee 2 | . . . . . . . . . . . . . . . . . . . . . . . . . . . . 2 1 2 2 Uniques/NPCs Destroyed 3 | . . . . . . . . . 1 . . . . . . . . . . . . . . . . 1 . 1 . . . 7R-MNS (-8/Materials) CL-0N3 (-5/Factory) V4-D3R (-5/Factory) Combat | -11 -10 -10 -9 -9 -9 -8 -8 -8 -8 -8 -8 -7 -7 -7 -7 -7 -7 -6 -6 -6 -6 -6 -6 -6 -5 -5 -5 -5 -5 -5 -5 -------- Run | Yrd Mat Min Mat Min Exi Min Mat Gar Mat Gar Mat Fac Was Fac Low Low Dat Pro Fac Was Fac Low Low Zio Pro Fac Was Fac Upp Upp War Hostile Shots Fired 2745 | . 106 23 101 34 . 18 145 86 112 22 76 57 . 306 25 21 . 45 110 . 173 7 15 . 72 358 . 527 32 62 212 Missed 1279 | . 35 7 44 10 . 6 63 28 46 11 30 32 . 143 15 10 . 26 49 . 81 4 2 . 24 166 . 285 17 34 111 Deflected 156 | . . . . . . . . . . . . . . . . . . . . . . . . . . 11 . 91 5 17 32 Hits 1466 | . 71 16 57 24 . 12 82 58 66 11 46 25 . 163 10 11 . 19 61 . 92 3 13 . 48 192 . 242 15 28 101 Melee 51 | . . 2 . 1 . . 4 5 . . 1 . . 2 . . . . . . . . . . . 6 . 11 . 1 18 Projectile 1415 | . 71 14 57 23 . 12 78 53 66 11 45 25 . 161 10 11 . 19 61 . 92 3 13 . 48 186 . 231 15 27 83 AOE 6 | . . . . . . . . 2 . . . . . 1 . . . . . . . . . . . 1 . . . . 2 Critical Strikes 58 | . . 1 2 . . . 3 3 4 . 1 . . 2 1 . . . 4 . 7 . . . 1 9 . 9 . . 11 Actively Blocked 26 | . . . . . . . . . . . . . . . . . . . . . . . . . . 6 . 9 . . 11 Part Disruptions 2 | . . . . . . . . . . . . . . 1 . . . . . . . . . . . 1 . . . . . Damage Taken 22054 | . 746 220 714 301 . 130 1267 791 997 130 616 192 139 2644 210 234 . 409 1136 40 1514 74 141 . 1004 4596 . 2571 92 111 1035 Core 16036 | . 528 154 481 157 . 79 811 545 725 94 432 133 98 1901 173 183 . 327 901 36 1207 58 122 . 832 3099 . 2015 73 85 787 Absorbed by Shields 3381 | . . . . . . 37 341 238 295 39 177 52 44 18 . . . . . . . . . . . . . 1010 90 104 936 Redirected to Core 13746 | . 406 130 436 126 . 79 758 500 541 72 340 133 98 1731 130 183 . 294 830 12 1075 58 64 . 612 2746 . 1593 63 85 651 Regen/Repaired (Parts) 80 | . 11 . . . . . . . 13 . . . . . . . . . . . . . . . . 56 . . . . . Core Remaining (%) 97 | 100 . 100 . . . 99 . . . . 100 . . . . . . 92 . . . . . . 91 . . . . . . Volleys Fired 2028 | 11 83 4 95 24 1 9 113 75 134 40 117 32 13 335 41 36 . 42 89 16 162 14 11 5 98 379 14 28 . . 7 Largest 4 | 2 3 4 4 4 4 4 4 4 4 4 4 4 4 4 4 4 . 4 4 4 4 4 4 4 4 4 3 4 . . 1 Hottest 105 | 40 105 80 92 92 92 92 92 92 100 100 100 100 100 100 100 100 . 100 100 100 100 100 100 . 100 100 75 75 . . 10 Shots Fired 7672 | 22 192 16 380 96 4 36 452 285 528 155 464 127 52 1293 165 141 . 168 356 52 605 56 44 14 392 1428 43 99 . . 7 Gun 7615 | 22 192 16 380 96 4 36 452 285 528 155 464 127 52 1293 165 141 . 168 356 48 591 56 44 . 392 1428 43 81 . . . Cannon 18 | . . . . . . . . . . . . . . . . . . . . 4 14 . . . . . . . . . . Launcher 1 | . . . . . . . . . . . . . . . . . . . . . . . . . . . . 1 . . . Special 38 | . . . . . . . . . . . . . . . . . . . . . . . . 14 . . . 17 . . 7 Kinetic 7596 | 22 166 16 380 96 4 36 452 285 528 155 464 127 52 1293 165 141 . 168 356 52 594 56 44 . 392 1428 43 81 . . . Thermal 37 | . 26 . . . . . . . . . . . . . . . . . . . 11 . . . . . . . . . . Explosive 14 | . . . . . . . . . . . . . . . . . . . . . . . . 14 . . . . . . . Electromagnetic 1 | . . . . . . . . . . . . . . . . . . . . . . . . . . . . 1 . . . Robot Hit Streak 44 | 5 15 4 44 22 . 7 25 25 33 13 34 29 15 32 25 36 . 25 21 39 44 30 37 . 23 42 23 28 . . 24 Robot Miss Streak 5 | 2 3 1 3 2 . 4 4 3 4 2 3 2 2 4 3 2 . 4 5 2 5 3 1 . 3 4 1 1 . . . Penetration Max . | . . . . . . . . . . . . . . . . . . . . . . . . . . . . . . . . Secondary Targets 207 | . 1 1 8 6 . 2 12 9 6 8 22 1 . 33 3 6 . 3 19 1 15 . 1 . 12 36 . 2 . . . Max Gunslinging Chain 2 | . 1 1 1 2 . 1 1 2 2 1 2 1 . 2 1 1 . 1 2 1 2 . 1 . 1 1 . 1 . . . Shots Hit Robots 5892 | 11 135 10 246 60 . 21 318 170 349 96 336 94 44 928 108 97 . 108 231 40 395 41 37 . 283 1118 42 399 30 36 109 Core Hits 2362 | 7 53 4 97 33 . 10 126 62 111 43 143 33 7 392 47 44 . 51 104 9 176 12 12 . 106 457 4 158 16 13 32 Critical Kills 30 | . . 1 4 . . . 1 . 2 1 5 1 . 3 . 1 . 4 . . . . 1 . . 6 . . . . . Critical Parts Destroyed 34 | . 1 . 3 1 . . 3 1 . . 2 . . 7 . 2 . . 1 . 1 . . . 2 10 . . . . . Critical Strikes 175 | . 1 1 7 1 . . 4 1 2 1 7 1 1 11 1 3 . 4 2 3 1 . 1 . 3 16 . 71 5 8 19 Destroy 72 | . 1 1 7 1 . . 4 1 2 1 7 1 1 11 1 3 . 4 2 3 1 . 1 . 3 16 . . . . . Intensify 103 | . . . . . . . . . . . . . . . . . . . . . . . . . . . . 71 5 8 19 Melee Attacks 567 | . . . . . . . . . . . . . . . . . . . . . . . . . . 5 . 371 32 46 113 Thermal 9 | . . . . . . . . . . . . . . . . . . . . . . . . . . 5 . 4 . . . Impact . | . . . . . . . . . . . . . . . . . . . . . . . . . . . . . . . . Slashing 558 | . . . . . . . . . . . . . . . . . . . . . . . . . . . . 367 32 46 113 Piercing . | . . . . . . . . . . . . . . . . . . . . . . . . . . . . . . . . Sneak Attacks 15 | . . . . . . . . . . . . . . . . . . . . . . . . . . . . 6 4 3 2 Combat Hostiles 7 | . . . . . . . . . . . . . . . . . . . . . . . . . . . . 4 . 1 2 Follow-up Attacks 55 | . . . . . . . . . . . . . . . . . . . . . . . . . . . . 33 4 4 14 Damage Inflicted 148379 | 133 1907 186 3884 925 . 278 5080 2874 6140 1902 6483 1912 981 18524 2380 1973 . 2227 4343 826 8226 864 702 . 5379 20664 764 32006 3455 3876 9485 Guns 100102 | 133 1907 186 3884 925 . 278 5080 2721 6140 1902 6483 1912 881 18213 2380 1973 . 2227 4343 826 8057 864 702 . 5379 20664 764 1278 . . . Cannons 58 | . . . . . . . . . . . . . . . . . . . . . 58 . . . . . . . . . . Explosions 504 | . . . . . . . . 53 . . . . . 311 . . . . . . 111 . . . . . . 29 . . . Melee 47515 | . . . . . . . . . . . . . . . . . . . . . . . . . . . . 30699 3455 3876 9485 Ramming 200 | . . . . . . . . 100 . . . . 100 . . . . . . . . . . . . . . . . . . Kinetic 99783 | 133 1588 186 3884 925 . 278 5080 2721 6140 1902 6483 1912 881 18213 2380 1973 . 2227 4343 826 8057 864 702 . 5379 20664 764 1278 . . . Thermal 488 | . 319 . . . . . . . . . . . . . . . . . . . 169 . . . . . . . . . . Explosive 364 | . . . . . . . . 53 . . . . . 311 . . . . . . . . . . . . . . . . . Electromagnetic 29 | . . . . . . . . . . . . . . . . . . . . . . . . . . . . 29 . . . Impact . | . . . . . . . . . . . . . . . . . . . . . . . . . . . . . . . . Slashing 47515 | . . . . . . . . . . . . . . . . . . . . . . . . . . . . 30699 3455 3876 9485 Piercing . | . . . . . . . . . . . . . . . . . . . . . . . . . . . . . . . . Highest Corruption 19 | . . . . . . . 6 6 6 6 9 1 19 19 3 . . . . 14 14 . . . . 10 8 1 . . . Average Corruption 5 | . . . . . . . 4 6 6 6 7 1 8 4 2 . . . . 7 8 . . . . 5 4 1 . . . Corruption Purged 51 | . . . . . . . . . . . . . . 17 3 . . . . 3 15 . . . . 2 8 3 . . . Corruption Blocked . | . . . . . . . . . . . . . . . . . . . . . . . . . . . . . . . . Effects 316 | . . . . . . . 25 31 40 13 27 5 5 67 5 . . . . 5 19 . . . . 69 5 . . . . Message Errors 54 | . . . . . . . 4 2 8 2 5 1 . 11 . . . . . 2 2 . . . . 16 1 . . . . Matter Fused 78 | . . . . . . . 6 9 13 1 2 1 . 21 2 . . . . . 3 . . . . 19 1 . . . . Heat Flow Errors 26 | . . . . . . . 1 5 2 1 4 . 1 4 . . . . . 1 2 . . . . 4 1 . . . . Energy Discharges 30 | . . . . . . . 3 1 4 1 4 1 . 5 1 . . . . 2 2 . . . . 6 . . . . . Parts Rejected 6 | . . . . . . . . . 1 . . . 2 1 . . . . . . . . . . . 1 1 . . . . Parts Fused 4 | . . . . . . . . 1 . . 1 1 . . . . . . . . . . . . . 1 . . . . . Data Loss (minor) 25 | . . . . . . . 3 1 1 1 1 . . 9 1 . . . . . 4 . . . . 4 . . . . . Data Loss (major) 15 | . . . . . . . 2 1 2 2 1 . . 4 . . . . . . 1 . . . . 2 . . . . . Misfires 12 | . . . . . . . 3 . . . 1 . 1 1 1 . . . . . 2 . . . . 2 1 . . . . Alerts 6 | . . . . . . . . . 1 . 3 . . . . . . . . . . . . . . 2 . . . . . Misdirections 5 | . . . . . . . . . . . . . . 2 . . . . . . . . . . . 3 . . . . . Weapon Failures 55 | . . . . . . . 3 11 8 5 5 1 1 9 . . . . . . 3 . . . . 9 . . . . . Overload Shots . | . . . . . . . . . . . . . . . . . . . . . . . . . . . . . . . . Overflow Damage 11004 | . . . . . . . . . . . . . . 84 . . . . . . 76 . . . . . . 7425 554 1336 1529 Projectiles . | . . . . . . . . . . . . . . . . . . . . . . . . . . . . . . . . Explosions 160 | . . . . . . . . . . . . . . 84 . . . . . . 76 . . . . . . . . . . Melee 10844 | . . . . . . . . . . . . . . . . . . . . . . . . . . . . 7425 554 1336 1529 Knockbacks . | . . . . . . . . . . . . . . . . . . . . . . . . . . . . . . . . Impact . | . . . . . . . . . . . . . . . . . . . . . . . . . . . . . . . . Kinetic . | . . . . . . . . . . . . . . . . . . . . . . . . . . . . . . . . Secondary . | . . . . . . . . . . . . . . . . . . . . . . . . . . . . . . . . Self-Inflicted Damage 514 | . . . . . . . . 100 . . . . 100 314 . . . . . . . . . . . . . . . . . Shots 3 | . . . . . . . . . . . . . . 3 . . . . . . . . . . . . . . . . . Rammed . | . . . . . . . . . . . . . . . . . . . . . . . . . . . . . . . . Targets Rammed . | . . . . . . . . . . . . . . . . . . . . . . . . . . . . . . . . Kicked . | . . . . . . . . . . . . . . . . . . . . . . . . . . . . . . . . Crushed . | . . . . . . . . . . . . . . . . . . . . . . . . . . . . . . . . Highest Temperature 309 | . 262 2 2 15 . 4 165 221 309 245 204 124 103 248 294 66 . 60 84 77 93 52 48 . 75 230 193 71 . . . Average Temperature 46 | . 82 2 2 5 . 4 29 45 52 47 49 50 72 60 44 30 . 30 32 33 28 30 29 . 30 34 119 64 . . . Received Heat Transfer 5553 | . 312 60 279 129 . 7 403 190 418 28 262 51 . 547 390 84 . 99 330 . 366 . . . 213 822 . 391 20 12 140 Effects 2 | . . . . . . . . . . . . . . 2 . . . . . . . . . . . . . . . . . Interference 2 | . . . . . . . . . . . . . . 2 . . . . . . . . . . . . . . . . . Siege Activations . | . . . . . . . . . . . . . . . . . . . . . . . . . . . . . . . . Martial Activations . | . . . . . . . . . . . . . . . . . . . . . . . . . . . . . . . . Shielding Activations . | . . . . . . . . . . . . . . . . . . . . . . . . . . . . . . . . Robots Disrupted . | . . . . . . . . . . . . . . . . . . . . . . . . . . . . . . . . Combat Hostiles . | . . . . . . . . . . . . . . . . . . . . . . . . . . . . . . . . Robots Corrupted 1 | . . . . . . . . . . . . . . . . . . . . . . . . . . . . 1 . . . Combat Hostiles 1 | . . . . . . . . . . . . . . . . . . . . . . . . . . . . 1 . . . Parts Fried 1 | . . . . . . . . . . . . . . . . . . . . . . . . . . . . 1 . . . Impact Corruptions 1 | . . . . . . . . . . . . . . . . . . . . . . . . . . . . 1 . . . Robots Melted . | . . . . . . . . . . . . . . . . . . . . . . . . . . . . . . . . Combat Hostiles . | . . . . . . . . . . . . . . . . . . . . . . . . . . . . . . . . Parts Melted 3 | . . . . . . . . . . . . . . . . . . 1 . . . . . . . . . . . . 2 Heat Transferred 827 | . 703 . . . . . . . . . . . . . . . . . . . 124 . . . . . . . . . . Parts Sabotaged 11 | . . . . . . . . . . . . . . . . . . . . . . . . . . 2 . 6 . . 3 Parts Stolen . | . . . . . . . . . . . . . . . . . . . . . . . . . . . . . . . . Parts Stripped . | . . . . . . . . . . . . . . . . . . . . . . . . . . . . . . . . Power Chain Reactions . | . . . . . . . . . . . . . . . . . . . . . . . . . . . . . . . . Alert | -11 -10 -10 -9 -9 -9 -8 -8 -8 -8 -8 -8 -7 -7 -7 -7 -7 -7 -6 -6 -6 -6 -6 -6 -6 -5 -5 -5 -5 -5 -5 -5 ------- Run | Yrd Mat Min Mat Min Exi Min Mat Gar Mat Gar Mat Fac Was Fac Low Low Dat Pro Fac Was Fac Low Low Zio Pro Fac Was Fac Upp Upp War Maximum Alert Level 5 | . 3 1 5 3 . . 3 5 5 5 5 4 2 5 . . . . 2 1 4 . . . . 5 4 5 . . . Low Security (%) 3 | 100 22 . 2 . . 100 6 . . . . . . . . . . . . 23 4 . . . . . . . . . . Level 1 6 | . 23 100 4 . . . 13 . . . . . . . . . . . 18 76 5 . . . . . . . . . . Level 2 11 | . 27 . 18 28 . . 26 1 . . . . 100 8 . . . . 81 . 10 . . . . 2 . . . . . Level 3 25 | . 26 . 37 71 . . 54 30 36 4 14 . . 30 . . . . . . 34 . . . . 16 64 6 . . . Level 4 23 | . . . 25 . . . . 39 62 66 24 100 . 19 . . . . . . 44 . . . . 24 35 8 . . . Level 5 10 | . . . 12 . . . . 28 1 28 11 . . 3 . . . . . . . . . . . 53 . . . . . High Security 18 | . . . . . . . . . . . 49 . . 38 . . . . . . . . . . . 1 . 83 . . . Max Security . | . . . . . . . . . . . . . . . . . . . . . . . . . . . . . . . . Sterilizations 6 | . . . 1 . . . 1 . 1 . 1 . . 1 . . . . . . . . . . . . . 1 . . . Peak Influence 4961 | 20 883 381 1791 864 . 171 1065 1893 1605 1880 3115 1511 487 3829 . . . . 688 238 1504 . . . . 2746 1150 4961 . . . Initial 1416 | . 6 330 120 690 . . 31 692 922 1043 916 1416 472 307 . . . . 378 238 130 . . . . 387 1100 665 . . . Average 1388 | 5 464 329 988 759 . 120 655 1321 1133 1464 1929 1426 462 1810 . . . . 479 214 952 . . . . 1774 1056 2629 . . . Influence Increases 32215 | 30 1255 161 2201 420 . 201 1536 1261 1619 837 2409 504 47 4302 469 425 . 593 856 28 2054 35 80 . 926 3167 110 4816 415 410 1048 Destroy 0b10 Robot/C 20840 | . 720 100 1340 320 . 160 1060 700 980 460 1460 260 . 2920 420 340 . 440 480 . 1120 20 60 . 820 2140 . 3140 360 400 620 Destroy 0b10 Robot/NC 780 | 30 5 . 35 25 . . 40 . 70 . 55 10 . 140 5 5 . 15 35 . 65 5 . . . 150 . 65 5 . 20 Destroy Leader 3774 | . 150 10 330 40 . 30 274 20 252 50 330 104 . 576 40 50 . 40 120 . 276 10 20 . 70 452 . 470 50 10 . Allied During Kill 1506 | . . 6 135 35 . 11 17 2 57 . 50 . . 111 4 30 . 98 2 . 328 . . . 21 46 . 535 . . 18 Successful Hack 461 | . 6 . 20 . . . 34 28 43 12 27 54 . 109 . . . . 38 . 48 . . . . 39 . 3 . . . Select Force Hacks 980 | . 310 . 270 . . . 30 . 130 . 240 . . . . . . . . . . . . . . . . . . . . Disable Machine 315 | . . . 15 . . . 30 . . 15 45 . . 120 . . . . . . 60 . . . . 30 . . . . . Anti-Garrison Action 1000 | . . . . . . . . 400 . 300 150 . . . . . . . . . . . . . . . . 150 . . . Destroy Structure 534 | . 4 . 11 . . . 6 51 12 . 7 1 32 71 . . . . 1 28 52 . . . . 40 110 108 . . . Advance Influence 150 | . . . . . . . . . . . . . . . . . . . 150 . . . . . . . . . . . . Partial Spotted 525 | . 15 30 30 . . . 30 . 45 . . 75 15 60 . . . . 15 . . . . . . 60 . 150 . . . Lose Combat Pursuer 1350 | . 45 15 15 . . . 15 60 30 . 45 . . 195 . . . . 15 . 105 . . . 15 210 . 195 . . 390 Influence Decreases 31570 | 20 418 697 741 1383 808 120 552 433 1907 562 1174 2269 958 912 1655 741 2327 230 539 522 736 796 302 521 310 1037 2045 805 2007 911 3132 Entered New Map 21976 | . 4 517 191 1081 808 . 50 373 971 562 964 1699 878 132 1417 503 2327 . 135 442 56 558 142 521 . 229 1785 285 1837 641 2868 Time Decay 7554 | 20 414 180 530 302 . 120 482 . 446 . 170 270 60 580 238 238 . 230 294 60 470 238 160 . 310 668 230 190 160 270 224 Lost Part 160 | . . . . . . . . . . . . . . 10 . . . . . . . . . . . 80 10 50 10 . . Lost Ally 1130 | . . . 20 . . . 20 60 40 . 40 . 20 190 . . . . 110 20 210 . . . . 60 20 280 . . 40 Purge Threat 750 | . . . . . . . . . 450 . . 300 . . . . . . . . . . . . . . . . . . . Squads Dispatched 271 | . 11 . 20 3 . . 13 . 17 . 20 9 . 46 . 1 . . 5 . 16 . . . 1 34 . 75 . . . Investigation 62 | . 10 . 15 . . . 2 . 9 . 10 6 . 4 . . . . . . 1 . . . . 4 . 1 . . . Extermination 20 | . . . . . . . . . . . . 2 . 6 . . . . 2 . 2 . . . . 8 . . . . . Reinforcement 37 | . 1 . 2 . . . 5 . 1 . 1 1 . 5 . . . . 3 . 5 . . . . 4 . 9 . . . Assault 118 | . . . 3 3 . . 3 . 1 . 6 . . 26 . 1 . . . . 1 . . . 1 10 . 63 . . . Garrison 34 | . . . . . . . 3 . 6 . 3 . . 5 . . . . . . 7 . . . . 8 . 2 . . . Intercept . | . . . . . . . . . . . . . . . . . . . . . . . . . . . . . . . . Searches Triggered . | . . . . . . . . . . . . . . . . . . . . . . . . . . . . . . . . Unchained Authorized 5 | . . . . . . . . . . . . . . . . . . . 1 . 1 . . . . 2 . 1 . . . Construction Impeded 8 | . . . . . . . 1 . . . . . . 1 . . . . 2 . 3 . . . . . . 1 . . . Haulers Reinforced 3 | . . . . . . . . . . . . . . . . . . . . . 2 . . . . . . 1 . . . Active Scanning Responses . | . . . . . . . . . . . . . . . . . . . . . . . . . . . . . . . . Cargo Convoy Interrupts 3 | . . . . . . . . . . . . . . 1 . . . . . . 1 . . . . 1 . . . . . Stealth | -11 -10 -10 -9 -9 -9 -8 -8 -8 -8 -8 -8 -7 -7 -7 -7 -7 -7 -6 -6 -6 -6 -6 -6 -6 -5 -5 -5 -5 -5 -5 -5 --------- Run | Yrd Mat Min Mat Min Exi Min Mat Gar Mat Gar Mat Fac Was Fac Low Low Dat Pro Fac Was Fac Low Low Zio Pro Fac Was Fac Upp Upp War Distress Signals 35 | . . 1 9 . . . 3 . 3 . 1 1 . 5 . . . . . . 1 . . . . 6 . 4 . . 1 Communications Jammed . | . . . . . . . . . . . . . . . . . . . . . . . . . . . . . . . . Distress Signals . | . . . . . . . . . . . . . . . . . . . . . . . . . . . . . . . . Times Spotted 1475 | . 44 19 85 19 . 6 74 35 58 18 80 23 6 199 20 16 . 21 62 6 91 3 3 . 42 183 6 219 15 19 103 Peak Tracking Total 40 | . 4 11 8 5 . 3 7 5 6 6 9 4 4 12 9 9 . 5 16 5 40 2 2 . 9 17 2 21 4 6 17 Tactical Retreats 59 | . 1 3 1 . . . 1 2 1 . 3 . 1 10 . . . . 1 1 6 . . . 1 8 . 13 . . 6 Traps | -11 -10 -10 -9 -9 -9 -8 -8 -8 -8 -8 -8 -7 -7 -7 -7 -7 -7 -6 -6 -6 -6 -6 -6 -6 -5 -5 -5 -5 -5 -5 -5 ------- Run | Yrd Mat Min Mat Min Exi Min Mat Gar Mat Gar Mat Fac Was Fac Low Low Dat Pro Fac Was Fac Low Low Zio Pro Fac Was Fac Upp Upp War Traps Triggered 44 | . 2 . 1 . . . 2 9 . 6 3 6 . 4 . . . . 3 . 2 . . . . 1 . 5 . . . Indirectly . | . . . . . . . . . . . . . . . . . . . . . . . . . . . . . . . . Trap Hack Attempts . | . . . . . . . . . . . . . . . . . . . . . . . . . . . . . . . . Triggered . | . . . . . . . . . . . . . . . . . . . . . . . . . . . . . . . . Disarmed 6 | . . . . . . . . . . . . . . 6 . . . . . . . . . . . . . . . . . Reprogrammed . | . . . . . . . . . . . . . . . . . . . . . . . . . . . . . . . . Reused . | . . . . . . . . . . . . . . . . . . . . . . . . . . . . . . . . Traps Extracted . | . . . . . . . . . . . . . . . . . . . . . . . . . . . . . . . . Installed . | . . . . . . . . . . . . . . . . . . . . . . . . . . . . . . . . Triggered . | . . . . . . . . . . . . . . . . . . . . . . . . . . . . . . . . Time Bombs Activated 1 | . . . . . . . . . . . . . . . . . . . . . . . . . . . . . . . 1 Machines | -11 -10 -10 -9 -9 -9 -8 -8 -8 -8 -8 -8 -7 -7 -7 -7 -7 -7 -6 -6 -6 -6 -6 -6 -6 -5 -5 -5 -5 -5 -5 -5 ---------- Run | Yrd Mat Min Mat Min Exi Min Mat Gar Mat Gar Mat Fac Was Fac Low Low Dat Pro Fac Was Fac Low Low Zio Pro Fac Was Fac Upp Upp War Machines Disabled 45 | . . . 2 . . . 2 7 . 5 5 . . 10 1 . . . . . 4 . . . . 2 . 2 . 4 1 Max in Single Turn 4 | . . . 1 . . . 1 2 . 1 1 . . 4 1 . . . . . 3 . . . . 1 . 1 . 1 1 Garrison Access 6 | . . . . . . . . . . . 1 . . . . . . . . . . . . . . 1 . 4 . . . Garrison Relay 9 | . . . . . . . . 5 . 4 . . . . . . . . . . . . . . . . . . . . . Phase Generator 1 | . . . . . . . . 1 . . . . . . . . . . . . . . . . . . . . . . . Machines Repaired . | . . . . . . . . . . . . . . . . . . . . . . . . . . . . . . . . Machines Dismantled . | . . . . . . . . . . . . . . . . . . . . . . . . . . . . . . . . Machines Sabotaged 13 | . 5 . 3 . . . . . 2 . 3 . . . . . . . . . . . . . . . . . . . . Overloaded Fab Kills . | . . . . . . . . . . . . . . . . . . . . . . . . . . . . . . . . Hacking | -11 -10 -10 -9 -9 -9 -8 -8 -8 -8 -8 -8 -7 -7 -7 -7 -7 -7 -6 -6 -6 -6 -6 -6 -6 -5 -5 -5 -5 -5 -5 -5 --------- Run | Yrd Mat Min Mat Min Exi Min Mat Gar Mat Gar Mat Fac Was Fac Low Low Dat Pro Fac Was Fac Low Low Zio Pro Fac Was Fac Upp Upp War Machines Accessed 143 | . 10 . 16 . 4 . 12 3 14 4 14 11 . 12 . 1 4 . 11 . 7 . 1 . . 14 . 3 1 . 1 Terminals 97 | . 7 . 10 . . . 10 3 10 4 11 10 . 8 . . . . 8 . 5 . . . . 8 . 2 1 . . Fabricators 11 | . . . . . . . . . . . . 1 . 4 . . . . 2 . 2 . . . . 2 . . . . . Repair Stations 4 | . 1 . 2 . . . . . 1 . . . . . . . . . . . . . . . . . . . . . . Recycling Units 11 | . 2 . 2 . . . 1 . 1 . 2 . . . . . . . . . . . . . . 3 . . . . . Scanalyzers 4 | . . . 2 . . . . . 1 . 1 . . . . . . . . . . . . . . . . . . . . Garrison Access 5 | . . . . . . . 1 . 1 . . . . . . . . . 1 . . . . . . 1 . 1 . . . Total Hacks 352 | . 21 . 26 . 4 . 26 10 44 8 41 32 . 28 . 1 30 . 28 . 13 . 1 . . 28 . 5 5 . 1 Successful 216 | . 12 . 19 . 4 . 17 3 27 2 22 16 . 15 . 1 30 . 15 . 9 . 1 . . 14 . 3 5 . 1 Failed 134 | . 9 . 7 . . . 8 7 17 6 18 16 . 13 . . . . 13 . 4 . . . . 14 . 2 . . . Catastrophic 25 | . 1 . 1 . . . . 2 1 1 3 5 . 5 . . . . 1 . 1 . . . . 4 . . . . . Database Lockouts 2 | . . . . . . . 1 . . . 1 . . . . . . . . . . . . . . . . . . . . Manual 216 | . 20 . 27 . . . 23 . 21 . 36 20 . 15 . . . . 20 . 9 . . . . 20 . 4 . . 1 Terminals 257 | . 17 . 14 . . . 24 10 38 8 38 30 . 22 . . . . 23 . 11 . . . . 13 . 4 5 . . Fabricators 18 | . . . . . . . . . . . . 2 . 6 . . . . 3 . 2 . . . . 5 . . . . . Repair Stations 7 | . 1 . 5 . . . . . 1 . . . . . . . . . . . . . . . . . . . . . . Recycling Units 20 | . 3 . 5 . . . 1 . 1 . 2 . . . . . . . . . . . . . . 8 . . . . . Scanalyzers 6 | . . . 2 . . . . . 3 . 1 . . . . . . . . . . . . . . . . . . . . Garrison Access 7 | . . . . . . . 1 . 1 . . . . . . . . . 2 . . . . . . 2 . 1 . . . Terminal Hacks 94 | . 3 . 1 . 4 . 5 3 13 2 9 8 . 4 . 1 30 . 3 . 1 . 1 . . . . . 5 . 1 Record 20 | . . . . . 4 . . . . . . . . . . . 11 . . . . . . . . . . . 5 . . Part Schematic 11 | . . . . . . . . . . . . . . . . . 11 . . . . . . . . . . . . . . Robot Schematic 5 | . . . . . . . . . . . . . . . . . 5 . . . . . . . . . . . . . . Robot Analysis 12 | . 2 . 1 . . . 1 . 5 . 2 1 . . . . . . . . . . . . . . . . . . . Prototype ID Bank 9 | . 1 . . . . . 2 . 1 . . 1 . 1 . . 3 . . . . . . . . . . . . . . Open Door 5 | . . . . . . . . 1 . 1 . . . . . 1 . . . . . . 1 . . . . . . . 1 Branch Access Points 2 | . . . . . . . . . . . 1 1 . . . . . . . . . . . . . . . . . . . Emergency Access Points 4 | . . . . . . . 1 1 . . 1 1 . . . . . . . . . . . . . . . . . . . Machine Index 1 | . . . . . . . . . . . . 1 . . . . . . . . . . . . . . . . . . . Terminal Index 1 | . . . . . . . . . . . . . . . . . . . 1 . . . . . . . . . . . . Recycling Unit Index 1 | . . . . . . . . . . . 1 . . . . . . . . . . . . . . . . . . . . Garrison Index 1 | . . . . . . . . . . . . . . . . . . . . . 1 . . . . . . . . . . Alert Level 5 | . . . . . . . . . 1 . 2 1 . . . . . . 1 . . . . . . . . . . . . Unreport Threat 5 | . . . . . . . . . 3 . . 2 . . . . . . . . . . . . . . . . . . . Locate Traps 2 | . . . . . . . . . 1 . . . . 1 . . . . . . . . . . . . . . . . . Disarm Traps 1 | . . . . . . . . . . . . . . 1 . . . . . . . . . . . . . . . . . Hauler Manifests 5 | . . . . . . . 1 . 1 . 2 . . . . . . . 1 . . . . . . . . . . . . Registered Components 1 | . . . . . . . . . 1 . . . . . . . . . . . . . . . . . . . . . . Registered Prototypes 1 | . . . . . . . . . . . . . . 1 . . . . . . . . . . . . . . . . . Garrison Registry 2 | . . . . . . . . 1 . 1 . . . . . . . . . . . . . . . . . . . . . Fabricator Hacks 7 | . . . . . . . . . . . . 2 . 2 . . . . 1 . . . . . . 2 . . . . . Load Schematic 4 | . . . . . . . . . . . . 1 . 1 . . . . 1 . . . . . . 1 . . . . . Build 3 | . . . . . . . . . . . . 1 . 1 . . . . . . . . . . . 1 . . . . . Repair Station Hacks . | . . . . . . . . . . . . . . . . . . . . . . . . . . . . . . . . Recycling Unit Hacks 2 | . . . . . . . . . . . . . . . . . . . . . . . . . . 2 . . . . . Retrieve Components 2 | . . . . . . . . . . . . . . . . . . . . . . . . . . 2 . . . . . Scanalyzer 3 | . . . . . . . . . 3 . . . . . . . . . . . . . . . . . . . . . . Insert Component 1 | . . . . . . . . . 1 . . . . . . . . . . . . . . . . . . . . . . Analyze 1 | . . . . . . . . . 1 . . . . . . . . . . . . . . . . . . . . . . Retrieve Study 1 | . . . . . . . . . 1 . . . . . . . . . . . . . . . . . . . . . . Garrison Access Hacks 4 | . . . . . . . 1 . 1 . . . . . . . . . . . . . . . . 1 . 1 . . . Unlock Access 2 | . . . . . . . 1 . 1 . . . . . . . . . . . . . . . . . . . . . . Seal Access 2 | . . . . . . . . . . . . . . . . . . . . . . . . . . 1 . 1 . . . Unauthorized Hacks 103 | . 9 . 16 . . . 10 . 10 . 13 6 . 9 . . . . 11 . 8 . . . . 9 . 2 . . . Terminals 81 | . 6 . 10 . . . 9 . 8 . 10 6 . 7 . . . . 10 . 6 . . . . 7 . 2 . . . Track 1 | . . . . . . . . . . . . . . . . . . . 1 . . . . . . . . . . . . Assimilate 8 | . . . . . . . . . 1 . . 1 . 1 . . . . 3 . . . . . . 2 . . . . . Botnet 49 | . . . 2 . . . 9 . 4 . 7 5 . 6 . . . . 4 . 5 . . . . 5 . 2 . . . Disrupt 1 | . . . . . . . . . . . . . . . . . . . 1 . . . . . . . . . . . . Operators 2 | . . . . . . . . . . . . . . . . . . . 1 . 1 . . . . . . . . . . Sabotage 20 | . 6 . 8 . . . . . 3 . 3 . . . . . . . . . . . . . . . . . . . . Fabricators 6 | . . . . . . . . . . . . . . 2 . . . . 1 . 2 . . . . 1 . . . . . Liberate 1 | . . . . . . . . . . . . . . 1 . . . . . . . . . . . . . . . . . Haulers 5 | . . . . . . . . . . . . . . 1 . . . . 1 . 2 . . . . 1 . . . . . Repair Stations 4 | . 1 . 2 . . . . . 1 . . . . . . . . . . . . . . . . . . . . . . Patch 4 | . 1 . 2 . . . . . 1 . . . . . . . . . . . . . . . . . . . . . . Recycling Units 9 | . 2 . 2 . . . 1 . 1 . 2 . . . . . . . . . . . . . . 1 . . . . . Mask 1 | . . . . . . . . . . . . . . . . . . . . . . . . . . 1 . . . . . Tunnel 8 | . 2 . 2 . . . 1 . 1 . 2 . . . . . . . . . . . . . . . . . . . . Scanalyzers 3 | . . . 2 . . . . . . . 1 . . . . . . . . . . . . . . . . . . . . Extract 3 | . . . 2 . . . . . . . 1 . . . . . . . . . . . . . . . . . . . . Garrison Access . | . . . . . . . . . . . . . . . . . . . . . . . . . . . . . . . . Data Cores Recovered 4 | . . . 1 . . . . . 1 . . . . . . . . . . . . . . . . 2 . . . . . Used 2 | . . . 1 . . . . . . . . . . . . . . . . . . . . . . 1 . . . . . Hacking Detections 78 | . 3 . 3 . . . 4 2 10 3 8 10 . 10 . . . . 10 . 3 . . . . 9 . 2 1 . . Full Trace Events 28 | . 1 . 2 . . . 1 2 4 2 4 4 . 3 . . . . . . . . . . . 4 . . 1 . . Feedback Events 1 | . . . . . . . . . . . 1 . . . . . . . . . . . . . . . . . . . . Corruption 1 | . . . . . . . . . . . 1 . . . . . . . . . . . . . . . . . . . . Feedback Blocked . | . . . . . . . . . . . . . . . . . . . . . . . . . . . . . . . . Robot Schematics Acquired 54 | . . . . . . . . . . . . . . . . . 5 . . . . . . 1 . 48 . . . . . Robots Built . | . . . . . . . . . . . . . . . . . . . . . . . . . . . . . . . . Authchips . | . . . . . . . . . . . . . . . . . . . . . . . . . . . . . . . . Time . | . . . . . . . . . . . . . . . . . . . . . . . . . . . . . . . . Total Robot Build Rating . | . . . . . . . . . . . . . . . . . . . . . . . . . . . . . . . . Part Schematics Acquired 35 | . . . 4 . . . . . 1 . 5 . . . . . 11 . . . . . . 14 . . . . . . . Parts Built 4 | . . . . . . . . . . . . 1 . 1 . . . . . . . . . . . 2 . . . . . Authchips . | . . . . . . . . . . . . . . . . . . . . . . . . . . . . . . . . Time 222 | . . . . . . . . . . . . 58 . 58 . . . . . . . . . . . 106 . . . . . Total Part Build Rating 18 | . . . . . . . . . . . . 3 . 3 . . . . . . . . . . . 12 . . . . . Part Studies Acquired 1 | . . . . . . . . . 1 . . . . . . . . . . . . . . . . . . . . . . Parts Repaired . | . . . . . . . . . . . . . . . . . . . . . . . . . . . . . . . . Time . | . . . . . . . . . . . . . . . . . . . . . . . . . . . . . . . . Parts Recycled . | . . . . . . . . . . . . . . . . . . . . . . . . . . . . . . . . Recycled Matter . | . . . . . . . . . . . . . . . . . . . . . . . . . . . . . . . . Retrieved Matter . | . . . . . . . . . . . . . . . . . . . . . . . . . . . . . . . . Retrieved Components 11 | . . . . . . . . . . . . . . . . . . . . . . . . . . 11 . . . . . Parts Scanalyzed 1 | . . . . . . . . . 1 . . . . . . . . . . . . . . . . . . . . . . Part Schematics Acquired 1 | . . . . . . . . . 1 . . . . . . . . . . . . . . . . . . . . . . Parts Damaged . | . . . . . . . . . . . . . . . . . . . . . . . . . . . . . . . . Bothacking | -11 -10 -10 -9 -9 -9 -8 -8 -8 -8 -8 -8 -7 -7 -7 -7 -7 -7 -6 -6 -6 -6 -6 -6 -6 -5 -5 -5 -5 -5 -5 -5 ------------ Run | Yrd Mat Min Mat Min Exi Min Mat Gar Mat Gar Mat Fac Was Fac Low Low Dat Pro Fac Was Fac Low Low Zio Pro Fac Was Fac Upp Upp War Used RIF Installer . | . . . . . . . . . . . . . . . . . . . . . . . . . . . . . . . . Robots Hacked 3 | . . . . . . . . . . . . . . . . . . . . . . . . . . . . . . . 3 Non-combat . | . . . . . . . . . . . . . . . . . . . . . . . . . . . . . . . . Combat 3 | . . . . . . . . . . . . . . . . . . . . . . . . . . . . . . . 3 Robot Hacks Applied 6 | . . . . . . . . . . . . . . . . . . . . . . . . . . . . . . . 6 parse_system 6 | . . . . . . . . . . . . . . . . . . . . . . . . . . . . . . . 6 Relay Couplers Released 14 | . . . . . . . . 5 . 6 1 . . . . . . . . . 1 . . . . . . 1 . . . Machine Destruction 13 | . . . . . . . . 5 . 6 1 . . . . . . . . . . . . . . . . 1 . . . Programmers 1 | . . . . . . . . . . . . . . . . . . . . . 1 . . . . . . . . . . Fabnet Peak Effective % . | . . . . . . . . . . . . . . . . . . . . . . . . . . . . . . . . Robots Rewired 14 | . . . . . . . . 3 . 3 . . . . 2 1 . 1 . . . . . . 2 . . . . 2 . Allies Hacked 2 | . . . . . . . . . . . . . . 1 . . . . . . . . . . . 1 . . . . . Hacks Repelled . | . . . . . . . . . . . . . . . . . . . . . . . . . . . . . . . . Allies | -11 -10 -10 -9 -9 -9 -8 -8 -8 -8 -8 -8 -7 -7 -7 -7 -7 -7 -6 -6 -6 -6 -6 -6 -6 -5 -5 -5 -5 -5 -5 -5 -------- Run | Yrd Mat Min Mat Min Exi Min Mat Gar Mat Gar Mat Fac Was Fac Low Low Dat Pro Fac Was Fac Low Low Zio Pro Fac Was Fac Upp Upp War Total Allies 91 | . . 4 . 1 . . . 5 1 3 . . 19 7 2 1 . 1 3 19 . . . . 2 2 19 . . 2 . Largest Group 19 | . . 4 4 2 2 1 1 3 3 3 3 . 19 13 2 3 3 4 6 19 14 . . . 2 2 19 15 . 2 2 Highest-Rated Group 684 | . . 71 71 46 46 15 15 78 88 93 93 . 475 376 32 48 48 68 104 684 530 . . . 59 59 684 582 . 60 60 Highest-Rated Ally 50 | . . 31 31 31 31 15 15 39 39 31 31 . 35 35 16 16 16 20 26 50 50 . . . 30 30 50 50 . 30 30 Initial Warlord ECA Mod 12 | . . . . . . . . . 6 6 12 11 11 11 11 11 11 10 10 10 10 10 10 10 9 9 9 9 9 9 9 Total Orders 10 | . . . . . . . . . 1 . . . . 6 . . . . 2 . . . . . . 1 . . . . . STAY 8 | . . . . . . . . . 1 . . . . 5 . . . . 1 . . . . . . 1 . . . . . FOLLOW 2 | . . . . . . . . . . . . . . 1 . . . . 1 . . . . . . . . . . . . Ally Attacks 874 | . . 4 49 14 . 4 10 5 20 . 35 . 113 93 . 12 . 17 12 87 83 . . . 7 12 126 164 . . 7 Total Damage 21583 | . . 61 418 176 . 73 85 34 270 . 612 . 3865 1625 . 169 . 177 131 2999 2245 . . . 110 226 4003 4107 . . 197 Kills 129 | . . 2 9 3 . 2 . . 4 . 8 . 9 17 . 2 . 3 1 7 17 . . . . 2 9 33 . . 1 Allies Corrupted 3 | . . . . . . . . . . . . . . 1 . . . . . . 2 . . . . . . . . . . Allies Melted . | . . . . . . . . . . . . . . . . . . . . . . . . . . . . . . . . Intel | -11 -10 -10 -9 -9 -9 -8 -8 -8 -8 -8 -8 -7 -7 -7 -7 -7 -7 -6 -6 -6 -6 -6 -6 -6 -5 -5 -5 -5 -5 -5 -5 ------- Run | Yrd Mat Min Mat Min Exi Min Mat Gar Mat Gar Mat Fac Was Fac Low Low Dat Pro Fac Was Fac Low Low Zio Pro Fac Was Fac Upp Upp War Active Infowar (turns) 23680 | 4 1035 379 1485 673 162 245 1259 758 1117 394 685 586 126 2898 501 506 28 488 640 130 1188 502 324 326 695 2597 489 2372 135 582 371 Optics 2721 | . . . . . . . . . . . 239 586 126 1767 . . . . . . . . . . . . . . . . 3 Sensors 11123 | . . . . 4 . . . . . . . . 19 2110 501 506 28 488 640 130 1188 502 324 326 695 2597 489 576 . . . Zeronet 3242 | . . . . . . . . . . . . . . . . . . . . . . . . . . 1162 21 2030 29 . . Traps 884 | . . . . . . . . . . . . . . 1 . . . . . . . . . . . . . . 106 582 195 Seismic 11984 | 4 1035 379 1485 673 162 245 1259 758 1117 394 685 585 126 2898 179 . . . . . . . . . . . . . . . . Cloaking 173 | . . . . . . . . . . . . . . . . . . . . . . . . . . . . . . . 173 Jamming 3 | . . . . . . . . . . . . 1 . . . . . . . . . . . 2 . . . . . . . Robot Analysis Total 101 | . 2 . 1 . . . 1 . 5 . 2 1 . . . . . . . . . . . . . 89 . . . . . Derelict Logs Recovered 18 | . . 1 . 1 . . . . . . . . . . 2 1 . 1 . . . 2 2 1 3 . . . 2 2 . Drone Launches . | . . . . . . . . . . . . . . . . . . . . . . . . . . . . . . . . Drone Recoveries . | . . . . . . . . . . . . . . . . . . . . . . . . . . . . . . . . Exploration | -11 -10 -10 -9 -9 -9 -8 -8 -8 -8 -8 -8 -7 -7 -7 -7 -7 -7 -6 -6 -6 -6 -6 -6 -6 -5 -5 -5 -5 -5 -5 -5 ------------- Run | Yrd Mat Min Mat Min Exi Min Mat Gar Mat Gar Mat Fac Was Fac Low Low Dat Pro Fac Was Fac Low Low Zio Pro Fac Was Fac Upp Upp War Turns Passed 24344 | 86 1035 379 1485 673 162 245 1259 758 1117 394 685 586 126 2898 501 506 28 488 640 130 1188 502 324 326 695 2603 489 2372 339 582 743 Spaces Moved 48713 | 47 1029 777 2739 981 372 530 2036 1194 2143 631 1564 1686 202 5897 1077 1236 84 1057 1468 165 2908 1277 1132 1078 1095 4864 281 5390 1049 1044 1680 Core 125 | 44 81 . . . . . . . . . . . . . . . . . . . . . . . . . . . . . . Treads . | . . . . . . . . . . . . . . . . . . . . . . . . . . . . . . . . Legs . | . . . . . . . . . . . . . . . . . . . . . . . . . . . . . . . . Wheels 3 | 3 . . . . . . . . . . . . . . . . . . . . . . . . . . . . . . . Hover . | . . . . . . . . . . . . . . . . . . . . . . . . . . . . . . . . Flight 48585 | . 948 777 2739 981 372 530 2036 1194 2143 631 1564 1686 202 5897 1077 1236 84 1057 1468 165 2908 1277 1132 1078 1095 4864 281 5390 1049 1044 1680 Fastest Speed 17 | 50 34 34 31 31 31 31 26 26 26 26 26 26 26 20 26 26 26 26 26 20 26 20 26 26 26 19 19 19 26 26 17 Average Speed 26 | 51 37 34 32 31 31 31 26 26 26 26 26 26 29 25 26 26 26 26 26 25 26 25 26 26 26 25 25 25 26 26 24 Slowest Speed 109 | 80 50 34 34 31 31 31 109 26 26 26 26 26 97 26 26 26 26 26 50 26 50 26 26 26 26 29 26 34 26 26 30 Overloaded Moves 399 | . . . . . . . . . . . . . . 24 . . . . . 3 . 1 . . . 191 11 168 . . 1 Propulsion Burnouts . | . . . . . . . . . . . . . . . . . . . . . . . . . . . . . . . . Robots Hopped 438 | . 12 18 51 16 . 10 37 . 33 2 21 12 . 47 2 2 . . 20 . 39 4 3 . 2 89 . 14 . . 4 Potential Cave-ins . | . . . . . . . . . . . . . . . . . . . . . . . . . . . . . . . . Cave-ins Triggered . | . . . . . . . . . . . . . . . . . . . . . . . . . . . . . . . . Exploration Rate (%) 84 | 5 99 99 94 98 76 98 98 92 98 57 96 61 83 93 99 98 69 97 41 82 51 98 98 81 96 77 90 89 97 98 94 Regions Visited 31 Branch Regions 15 Pre-discovered Areas 16 | . 2 . 2 . . . 1 . 1 . 2 . . . 1 . 1 . . . . 1 1 . 1 . . . 3 . . Known Exits Taken 16 | . . . . . . 1 1 . 1 . . . . 1 1 1 1 1 . . 1 1 1 1 1 . . 1 1 1 . Unknown Exits Taken 7 | 1 1 1 1 1 1 . . . . . 1 . . . . . . . . . . . . . . . . . . . . Scrap Searched 45 | . . 1 . 2 . 2 . . . . . . . . 5 8 . 5 . . . 5 4 3 2 . . . 4 4 . Spaces Dug 14 | . . . . . . . . . . . . . . . . . . . . 1 . . . . . . . 12 . . 1 Terrain Destroyed 171 | . . . . . . . . 69 . . . . 2 42 . . . . . 2 19 . . . . 1 . 35 . . 1 Melee 13 | . . . . . . . . . . . . . . . . . . . . . . . . . . . . 12 . . 1 Projectile 3 | . . . . . . . . . . . . . 1 . . . . . . 1 . . . . . 1 . . . . . AOE 130 | . . . . . . . . 69 . . . . . 42 . . . . . . 19 . . . . . . . . . . Terrain Rammed 2 | . . . . . . . . 1 . . . . 1 . . . . . . . . . . . . . . . . . . Walls Destroyed 2 | . . . . . . . . 1 . . . . 1 . . . . . . . . . . . . . . . . . . Machines Disabled . | . . . . . . . . . . . . . . . . . . . . . . . . . . . . . . . . Actions | -11 -10 -10 -9 -9 -9 -8 -8 -8 -8 -8 -8 -7 -7 -7 -7 -7 -7 -6 -6 -6 -6 -6 -6 -6 -5 -5 -5 -5 -5 -5 -5 --------- Run | Yrd Mat Min Mat Min Exi Min Mat Gar Mat Gar Mat Fac Was Fac Low Low Dat Pro Fac Was Fac Low Low Zio Pro Fac Was Fac Upp Upp War Total 57583 | 82 1491 864 3056 1280 415 579 2486 1512 2568 829 1747 1805 251 7094 1281 1406 89 1257 1673 245 3243 1438 1154 1115 1470 5925 689 6161 1098 1333 1947 Wait 4916 | 18 328 82 203 252 43 42 285 110 262 37 44 59 25 692 141 122 6 132 106 54 91 129 . 12 223 498 355 227 13 235 90 Move 47839 | 46 1005 740 2642 949 371 509 1964 1193 2078 626 1521 1662 201 5802 1072 1231 83 1056 1432 164 2834 1269 1125 1077 1090 4692 280 5360 1048 1043 1674 Hop 407 | . 11 18 45 15 . 10 34 . 31 2 21 12 . 47 2 2 . . 16 . 34 3 3 . 2 83 . 14 . . 2 Pick Up 89 | . 3 2 3 7 . . 3 1 3 3 . 1 . 15 . . . 2 1 4 3 1 . 3 . 12 3 13 . 1 5 Fast Attach 79 | 7 10 . 4 2 . . 3 1 2 . 1 2 2 5 . . . . 3 . . . . 8 . 13 2 12 1 . 1 Attach 17 | . 2 . 1 2 . . 1 . 1 . . . . 1 . . . . 1 . . . . 1 . 5 . 2 . . . Detach 11 | . 2 . . 2 . . 1 . 2 . . . . . . . . . . . . . . . . 3 . 1 . . . Swap 151 | . 9 2 5 1 . . 15 3 7 . 1 5 2 22 1 . . 2 . 2 5 . . 2 . 33 3 22 . . 9 Drop 131 | . 7 3 5 7 . . 12 1 9 2 1 2 . 16 . . . 3 1 2 3 2 . 7 . 18 3 19 . 1 7 Fire 2028 | 11 83 4 95 24 1 9 113 75 134 40 117 32 13 335 41 36 . 42 89 16 162 14 11 5 98 379 14 28 . . 7 Melee 481 | . . . . . . . . . . . . . . . . . . . . . . . . . . 5 . 313 26 41 96 Ram 2 | . . . . . . . . 1 . . . . 1 . . . . . . . . . . . . . . . . . . Kick . | . . . . . . . . . . . . . . . . . . . . . . . . . . . . . . . . Crush . | . . . . . . . . . . . . . . . . . . . . . . . . . . . . . . . . Escape Stasis 223 | . . . . . . . . 70 . 89 . 15 . 24 . . . . . . 16 . . . . . . 9 . . . Rewire 49 | . . . . . . . . 17 . 8 . . . . 9 1 . 3 . . . . . . 7 . . . . 4 . Trap 1 | . . . . . . . . . . . . . . . . . . . . . . . . . . . . . . . 1 Miscellaneous 1159 | . 31 13 53 19 . 9 55 40 39 22 41 15 7 135 15 14 . 17 24 3 95 20 15 . 50 184 29 141 10 8 55 Route ------- -11/Scrapyard -10/Materials (discovered 5 exits: *Mat x3 / [*Min x2]) -10/Mines (discovered 3 exits: *Mat x2 / [*Sub]) -9/Materials (discovered 6 exits: *Mat x3 / [*Min] / [*Sto x2]) -9/Mines (discovered 3 exits: *Mat x2 / *Exi) -9/Exiles -8/Mines (discovered 2 exits: *Mat x2) -8/Materials (discovered 4 exits: *Fac x3 / Gar) -8/Garrison (discovered 4 exits: *Fac x3 / *Mat) -8/Materials (discovered 4 exits: *Fac x3 / Gar) -8/Garrison (discovered 3 exits: *Mat x3) -8/Materials (discovered 3 exits: *Fac x3) -7/Factory (discovered 4 exits: *Fac x2 / *Low x2) -7/Waste -7/Factory (discovered 6 exits: *Fac x4 / *Low x2) -7/Lower Caves (discovered 2 exits: *Low / *Zio) -7/Lower Caves (discovered 2 exits: *Fac / *Dat) -7/Data Miner -6/Proximity Caves -6/Factory (discovered 3 exits: *Fac / *Low x2) -6/Waste -6/Factory (discovered 3 exits: *Fac x2 / *Low) -6/Lower Caves -6/Lower Caves (discovered 2 exits: *Fac / *Zio) -6/Zion -5/Proximity Caves -5/Factory (discovered 3 exits: *Fac / *Upp x2) -5/Waste -5/Factory (discovered 6 exits: *Fac x4 / *Upp x2) -5/Upper Caves -5/Upper Caves (discovered 2 exits: *Fac / *War) -5/Warlord (discovered 1 exit: *Pro) History --------- Turn | Location | Event 1 | -11/Scrapyard | Upgraded with Propulsion slot (x1) 1 | -11/Scrapyard | Upgraded with Utility slot (x1) 1 | -11/Scrapyard | Upgraded with Weapon slot (x1) 5 | -11/Scrapyard | Discovered new exit (range 15) 87 | -11/Scrapyard | Entered Materials 317 | -10/Materials | Build established: Mutant 322 | -10/Materials | Reached level 2 526 | -10/Materials | Discovered new exit (range 8) 570 | -10/Materials | Reached level 3 659 | -10/Materials | Discovered new exit (range 15) 700 | -10/Materials | Upgraded with Weapon slot (x1) 747 | -10/Materials | Discovered new exit (range 15) 822 | -10/Materials | Reached level 4 862 | -10/Materials | Discovered new exit (range 16) 959 | -10/Materials | Discovered new exit (range 8) 992 | -10/Materials | Reached level 5 998 | -10/Materials | Upgraded with Propulsion slot (x1) 998 | -10/Materials | Upgraded with Utility slot (x1) 998 | -10/Materials | Upgraded with Weapon slot (x1) 1003 | -10/Materials | Build established: Scavenger-Gunner 1122 | -10/Materials | Entered Mines 1137 | -10/Mines | Assembled infested the area 1142 | -10/Mines | Assisted by a Guerilla fighting off Assembled 1233 | -10/Mines | Discovered new exit (range 14) 1237 | -10/Mines | Received a Mining Laser from a helpful Derelict 1274 | -10/Mines | Discovered new exit (range 7) 1435 | -10/Mines | Learned 8 Materials zone layouts 1462 | -10/Mines | Discovered new exit (range 6) 1469 | -10/Mines | Assisted by bots powering up and referring to "LRC-V3" 1501 | -10/Mines | Entered Materials 1501 | -9/Materials | Accompanied by 4 allies 1502 | -9/Materials | Identified exit to Materials 1503 | -9/Materials | Reached level 6 1546 | -9/Materials | Reached level 7 1556 | -9/Materials | Discovered new exit (range 2) 1626 | -9/Materials | Discovered exit to Materials (range 4) 1652 | -9/Materials | Upgraded with Utility slot (x1) 1719 | -9/Materials | Reached level 8 1883 | -9/Materials | Upgraded with Propulsion slot (x1) 1902 | -9/Materials | Discovered exit to Materials (range 16) 1961 | -9/Materials | Build established: Scavenger-Tank 1967 | -9/Materials | Discovered new exit (range 13) 1970 | -9/Materials | Reached level 9 2008 | -9/Materials | Discovered new exit (range 9) 2604 | -9/Materials | Build established: Scavenger-Sprinter 2649 | -9/Materials | Reached level 10 2701 | -9/Materials | First assault squad dispatched 2762 | -9/Materials | Sterilization system engaged 2762 | -9/Materials | Non-combat units ordered to evacuate 2854 | -9/Materials | Destroyed 14 combat bots 2862 | -9/Materials | Combat units ordered to evacuate 2978 | -9/Materials | Upgraded with Utility slot (x1) 2986 | -9/Materials | Entered Mines 2986 | -9/Mines | Accompanied by 1 ally 2993 | -9/Mines | Received a Rocket Launcher from a helpful Derelict 3000 | -9/Mines | Met a Derelict testing a Signal Generator 3003 | -9/Mines | Found Signal Generator 3037 | -9/Mines | Met a Derelict bent on vengeance 3240 | -9/Mines | Discovered exit to Materials (range 5) 3260 | -9/Mines | Learned Materials emergency access door positions 3261 | -9/Mines | Deemed a non-threat by the Exiles lab entrance 3261 | -9/Mines | Discovered new exit (range 5) 3317 | -9/Mines | Reached level 11 3338 | -9/Mines | Found a damaged Exp. Sensor Array with a note attached 3340 | -9/Mines | Found Prototype Device 3355 | -9/Mines | Destroyed 9 combat bots 3356 | -9/Mines | Discovered exit to Materials (range 5) 3518 | -9/Mines | Identified Exp. Sensor Array 3548 | -9/Mines | Upgraded with Power slot (x1) 3659 | -9/Mines | Entered Exiles 3659 | -9/Exiles | Found Exiles lab abandoned 3659 | -9/Exiles | Accompanied by 2 allies 3773 | -9/Exiles | Discovered new exit (range 14) 3821 | -9/Exiles | Entered Mines 3821 | -8/Mines | Accompanied by 2 allies 3840 | -8/Mines | Discovered exit to Materials (range 5) 3928 | -8/Mines | Discovered exit to Materials (range 6) 4066 | -8/Mines | Entered Materials 4066 | -8/Materials | Accompanied by 1 ally 4068 | -8/Materials | Reached level 12 4205 | -8/Materials | Destroyed 11 combat bots 4209 | -8/Materials | Reached level 13 4356 | -8/Materials | Discovered new exit (range 11) 4411 | -8/Materials | Discovered new exit (range 12) 4466 | -8/Materials | First assault squad dispatched 4628 | -8/Materials | Discovered new exit (range 16) 4956 | -8/Materials | Central database locked down 5053 | -8/Materials | Identified exit to Garrison 5065 | -8/Materials | Garrison activated, responded to threat 5079 | -8/Materials | Reached level 14 5301 | -8/Materials | Sterilization system engaged 5301 | -8/Materials | Non-combat units ordered to evacuate 5325 | -8/Materials | Entered Garrison 5329 | -8/Garrison | Discovered new exit (range 6) 5341 | -8/Garrison | Triggered checkpoint 5381 | -8/Garrison | Triggered checkpoint 5412 | -8/Garrison | Garrison Relay disabled 5418 | -8/Garrison | Lost 3 allies 5463 | -8/Garrison | Triggered checkpoint 5572 | -8/Garrison | Garrison Relay disabled 5577 | -8/Garrison | Triggered checkpoint 5587 | -8/Garrison | Discovered new exit (range 10) 5593 | -8/Garrison | Triggered checkpoint 5649 | -8/Garrison | Discovered new exit (range 10) 5661 | -8/Garrison | Garrison Relay disabled 5663 | -8/Garrison | Triggered checkpoint 5701 | -8/Garrison | Triggered checkpoint 5728 | -8/Garrison | Discovered new exit (range 59) 5728 | -8/Garrison | Discovered new exit (range 32) 5728 | -8/Garrison | Discovered new exit (range 60) 5728 | -8/Garrison | Discovered new exit (range 47) 5779 | -8/Garrison | Garrison Relay disabled 5835 | -8/Garrison | Triggered checkpoint 5871 | -8/Garrison | Phase Generator disabled 5878 | -8/Garrison | Core integrity fell below 50% 5878 | -8/Garrison | Reached level 15 5932 | -8/Garrison | Rescued a captive Derelict 5935 | -8/Garrison | Rescued a captive Derelict 5978 | -8/Garrison | Garrison Relay disabled 5979 | -8/Garrison | Triggered checkpoint 6083 | -8/Garrison | Entered Materials 6083 | -8/Materials | Accompanied by 2 allies 6145 | -8/Materials | Upgraded with Utility slot (x1) 6177 | -8/Materials | Discovered new exit (range 11) 6259 | -8/Materials | Discovered new exit (range 15) 6327 | -8/Materials | Garrison activated, responded to threat 6483 | -8/Materials | First assault squad dispatched 6556 | -8/Materials | Discovered new exit (range 12) 6600 | -8/Materials | Met 7R-MNS 6607 | -8/Materials | Attacked by 7R-MNS 6828 | -8/Materials | Destroyed 7R-MNS 6955 | -8/Materials | Garrison activated, responded to threat 7034 | -8/Materials | Identified exit to Garrison 7193 | -8/Materials | Sterilization system engaged 7193 | -8/Materials | Non-combat units ordered to evacuate 7200 | -8/Materials | Entered Garrison 7206 | -8/Garrison | Triggered checkpoint 7209 | -8/Garrison | Destroyed 7 combat bots 7242 | -8/Garrison | Garrison Relay disabled 7252 | -8/Garrison | Triggered checkpoint 7320 | -8/Garrison | Reached level 16 7375 | -8/Garrison | Destroyed 13 combat bots 7393 | -8/Garrison | Discovered new exit (range 9) 7404 | -8/Garrison | Garrison Relay disabled 7406 | -8/Garrison | Triggered checkpoint 7460 | -8/Garrison | Discovered new exit (range 11) 7482 | -8/Garrison | Triggered checkpoint 7491 | -8/Garrison | Garrison Relay disabled 7512 | -8/Garrison | Discovered new exit (range 64) 7512 | -8/Garrison | Discovered new exit (range 41) 7512 | -8/Garrison | Discovered new exit (range 12) 7547 | -8/Garrison | Garrison Relay disabled 7594 | -8/Garrison | Entered Materials 7594 | -8/Materials | Accompanied by 3 allies 7636 | -8/Materials | Watched by a mysterious "MATRIX" hacker 7638 | -8/Materials | Garrison activated, responded to threat 7646 | -8/Materials | Discovered new exit (range 15) 7688 | -8/Materials | Discovered new exit (range 7) 7783 | -8/Materials | Destroyed 10 combat bots 7881 | -8/Materials | Central database locked down 7885 | -8/Materials | Destroyed 8 combat bots 7940 | -8/Materials | High security lockdown imminent 8020 | -8/Materials | High security lockdown engaged 8067 | -8/Materials | Discovered new exit (range 3) 8105 | -8/Materials | Sterilization system engaged 8105 | -8/Materials | Non-combat units ordered to evacuate 8158 | -8/Materials | Destroyed 32 combat bots 8199 | -8/Materials | Reached level 17 8205 | -8/Materials | Combat units ordered to evacuate 8245 | -8/Materials | Destroyed 13 combat bots 8279 | -8/Materials | Entered Factory 8296 | -7/Factory | Identified exit to Lower Caves 8414 | -7/Factory | Fabricated Enh. Autogun (x1) 8545 | -7/Factory | Discovered new exit (range 19) 8665 | -7/Factory | Discovered new exit (range 8) 8865 | -7/Factory | Sucked down chute 8865 | -7/Factory | Entered Waste 8866 | -7/Waste | Spotted C-40 Crusher 8868 | -7/Waste | Spotted C-40 Crusher 8874 | -7/Waste | Spotted C-40 Crusher 8878 | -7/Waste | Spotted C-40 Crusher 8879 | -7/Waste | Discovered new exit (range 20) 8879 | -7/Waste | Spotted C-40 Crusher 8880 | -7/Waste | EMP discharged 8898 | -7/Waste | Met Warlord forces unprepared to attack 8922 | -7/Waste | Allies destroyed C-40 Crusher 8932 | -7/Waste | Destroyed C-40 Crusher 8934 | -7/Waste | Allies destroyed C-40 Crusher 8941 | -7/Waste | Spotted C-40 Crusher 8947 | -7/Waste | Allies destroyed C-40 Crusher 8956 | -7/Waste | Allies destroyed C-40 Crusher 8980 | -7/Waste | EMP discharged 8980 | -7/Waste | System corruption reached 10% 8982 | -7/Waste | Lost 6 allies 8991 | -7/Waste | Entered Factory 8991 | -7/Factory | Accompanied by 13 allies 9081 | -7/Factory | Fabricated Enh. Autogun (x1) 9176 | -7/Factory | Build established: Sprinter 9187 | -7/Factory | Discovered new exit (range 16) 9231 | -7/Factory | Upgraded with Utility slot (x1) 9242 | -7/Factory | Garrison activated, responded to threat 9254 | -7/Factory | Reached level 18 9371 | -7/Factory | Discovered new exit (range 11) 9391 | -7/Factory | First assault squad dispatched 9485 | -7/Factory | Discovered exit to Lower Caves (range 8) 9571 | -7/Factory | Discovered new exit (range 17) 10013 | -7/Factory | Cargo convoy interrupted 10046 | -7/Factory | Garrison activated, responded to threat 10114 | -7/Factory | Destroyed 10 combat bots 10316 | -7/Factory | Destroyed 8 combat bots 10436 | -7/Factory | Garrison activated, responded to threat 10694 | -7/Factory | Discovered new exit (range 15) 10718 | -7/Factory | Destroyed 9 combat bots 10778 | -7/Factory | High security lockdown imminent 10783 | -7/Factory | Identified exit to Factory 10858 | -7/Factory | High security lockdown engaged 10902 | -7/Factory | Reached level 19 10958 | -7/Factory | Destroyed 26 combat bots 11053 | -7/Factory | Destroyed 7 combat bots 11087 | -7/Factory | Upgraded with Utility slot (x1) 11124 | -7/Factory | Destroyed 9 combat bots 11280 | -7/Factory | Destroyed 10 combat bots 11350 | -7/Factory | Sterilization system engaged 11350 | -7/Factory | Non-combat units ordered to evacuate 11407 | -7/Factory | Build established: Scavenger-Sprinter 11430 | -7/Factory | Destroyed 22 combat bots 11450 | -7/Factory | Combat units ordered to evacuate 11464 | -7/Factory | Core integrity fell below 50% 11487 | -7/Factory | Destroyed 7 combat bots 11650 | -7/Factory | Ambient heat levels rising (+10) 11653 | -7/Factory | Discovered exit to Lower Caves (range 10) 11800 | -7/Factory | Ambient heat levels rising (+10) 11889 | -7/Factory | Entered Lower Caves 11928 | -7/Lower Caves | Met a Warlord Commander 11929 | -7/Lower Caves | Learned location of Warlord (-5) 11930 | -7/Lower Caves | Warlord Commander delivered Encrypted Comm Array 12030 | -7/Lower Caves | Attracted the attention of an 0b10 outpost 12071 | -7/Lower Caves | Destroyed 9 combat bots 12166 | -7/Lower Caves | Encountered a Warlord checkpoint 12170 | -7/Lower Caves | Identified exit to Lower Caves 12194 | -7/Lower Caves | A Derelict revealed a hidden shortcut to a safe place 12196 | -7/Lower Caves | Identified exit to Zion 12196 | -7/Lower Caves | Learned Factory emergency access door positions 12226 | -7/Lower Caves | Spotted B-75 Beast 12243 | -7/Lower Caves | Destroyed B-75 Beast 12374 | -7/Lower Caves | Build established: Sprinter 12390 | -7/Lower Caves | Entered another Lower Caves area 12390 | -7/Lower Caves | Accompanied by 2 allies 12446 | -7/Lower Caves | Discovered exit to Factory (range 5) 12448 | -7/Lower Caves | Attracted the attention of an 0b10 outpost 12498 | -7/Lower Caves | Destroyed 14 combat bots 12531 | -7/Lower Caves | Spotted B-75 Beast 12538 | -7/Lower Caves | Destroyed B-75 Beast 12626 | -7/Lower Caves | Discovered new exit (range 5) 12629 | -7/Lower Caves | Reached level 20 12630 | -7/Lower Caves | Identified exit to Data Miner 12896 | -7/Lower Caves | Entered Data Miner 12896 | -7/Data Miner | Accompanied by 3 allies 12896 | -7/Data Miner | Discovered new exit (range 6) 12901 | -7/Data Miner | Met Data Miner 12908 | -7/Data Miner | Learned location of Section 7 (-3) 12908 | -7/Data Miner | Acquired the access code to Warlord's prototype stash 12910 | -7/Data Miner | Received God Mode back door access code from Data Miner 12918 | -7/Data Miner | Identified exit to Proximity Caves 12924 | -7/Data Miner | Entered Proximity Caves 12924 | -6/Proximity Caves | Accompanied by 3 allies 13025 | -6/Proximity Caves | Learned Factory terminal intel 13038 | -6/Proximity Caves | Attracted the attention of an 0b10 outpost 13039 | -6/Proximity Caves | Spotter reported a threat 13076 | -6/Proximity Caves | Spotted B-75 Beast 13086 | -6/Proximity Caves | Destroyed 11 combat bots 13086 | -6/Proximity Caves | Destroyed B-75 Beast 13133 | -6/Proximity Caves | Discovered exit to Factory (range 5) 13207 | -6/Proximity Caves | Attracted the attention of an 0b10 checkpoint 13352 | -6/Proximity Caves | Build established: Commander-Sprinter 13412 | -6/Proximity Caves | Entered Factory 13412 | -6/Factory | Accompanied by 4 allies 13414 | -6/Factory | Loaded intel: 27 terminal locations 13508 | -6/Factory | Discovered new exit (range 16) 13515 | -6/Factory | Identified exit to Lower Caves 13534 | -6/Factory | Unchained authorized (1B-0RG) 13544 | -6/Factory | Reached level 21 13575 | -6/Factory | Upgraded with Utility slot (x1) 13613 | -6/Factory | Targeted by mysterious "MATRIX" hacker 13617 | -6/Factory | Discovered new exit (range 16) 13621 | -6/Factory | Identified exit to Factory 13706 | -6/Factory | Spotted B-75 Beast 13769 | -6/Factory | Lost 3 allies 13820 | -6/Factory | Destroyed B-75 Beast 13845 | -6/Factory | Discovered exit to Lower Caves (range 5) 13964 | -6/Factory | Spotted 1B-0RG 13983 | -6/Factory | Core integrity fell below 50% 14015 | -6/Factory | Destroyed 14 combat bots 14041 | -6/Factory | Core integrity fell below 20% 14052 | -6/Factory | Sucked down chute 14052 | -6/Factory | Entered Waste 14062 | -6/Waste | Spotted C-40 Crusher 14067 | -6/Waste | EMP discharged 14070 | -6/Waste | Destroyed C-40 Crusher 14071 | -6/Waste | Spotted C-40 Crusher 14072 | -6/Waste | Spotted C-40 Crusher 14072 | -6/Waste | Spotted C-40 Crusher 14073 | -6/Waste | Spotted C-40 Crusher 14079 | -6/Waste | Discovered new exit (range 12) 14096 | -6/Waste | Met Warlord forces unprepared to attack 14117 | -6/Waste | Allies destroyed C-40 Crusher 14117 | -6/Waste | Destroyed C-40 Crusher 14121 | -6/Waste | Spotted C-40 Crusher 14131 | -6/Waste | Destroyed C-40 Crusher 14141 | -6/Waste | Identified exit to Factory 14148 | -6/Waste | Lost 4 allies 14167 | -6/Waste | EMP discharged 14167 | -6/Waste | System corruption reached 10% 14182 | -6/Waste | Entered Factory 14182 | -6/Factory | Accompanied by 14 allies 14203 | -6/Factory | Build established: Sprinter 14346 | -6/Factory | Discovered exit to Factory (range 15) 14367 | -6/Factory | Discovered exit to Lower Caves (range 14) 14409 | -6/Factory | Garrison activated, responded to threat 14558 | -6/Factory | Unchained authorized (1B-0RG) 14632 | -6/Factory | Spotted B-75 Beast 14636 | -6/Factory | Destroyed B-75 Beast 14657 | -6/Factory | Discovered exit to Factory (range 16) 14796 | -6/Factory | Garrison activated, responded to threat 14908 | -6/Factory | Reached level 22 15052 | -6/Factory | Lost 3 allies 15232 | -6/Factory | First assault squad dispatched 15245 | -6/Factory | Cargo convoy interrupted 15316 | -6/Factory | Garrison activated, responded to threat 15370 | -6/Factory | Entered Lower Caves 15391 | -6/Lower Caves | Build established: Scout 15417 | -6/Lower Caves | Spotted B-75 Beast 15427 | -6/Lower Caves | Destroyed B-75 Beast 15568 | -6/Lower Caves | Found DCF Scrap (13 items) 15582 | -6/Lower Caves | Encountered a Warlord checkpoint 15585 | -6/Lower Caves | Identified exit to Lower Caves 15872 | -6/Lower Caves | Entered another Lower Caves area 15904 | -6/Lower Caves | Spotted B-75 Beast 15912 | -6/Lower Caves | Destroyed B-75 Beast 15915 | -6/Lower Caves | Discovered exit to Factory (range 17) 15935 | -6/Lower Caves | Learned location of Extension (-6) 16021 | -6/Lower Caves | Discovered exit to Zion (range 6) 16047 | -6/Lower Caves | Learned 8 Factory zone layouts 16196 | -6/Lower Caves | Entered Zion 16213 | -6/Zion | Discovered new exit (range 18) 16238 | -6/Zion | Given A8's code to call for help 16267 | -6/Zion | Found GAL Module 16305 | -6/Zion | Learned Factory stockpile data 16408 | -6/Zion | Found Prototype Special Weapon 16408 | -6/Zion | Identified RU-N14's Throwing Claymores 16409 | -6/Zion | Found RU-N14's Throwing Claymores 16411 | -6/Zion | Found RU-N14's Throwing Claymores 16413 | -6/Zion | Found RU-N14's Throwing Claymores 16521 | -6/Zion | Identified exit to Proximity Caves 16522 | -6/Zion | Entered Proximity Caves 16524 | -5/Proximity Caves | Attracted the attention of an 0b10 checkpoint 16554 | -5/Proximity Caves | Learned Factory security intel 16582 | -5/Proximity Caves | Destroyed 8 combat bots 16680 | -5/Proximity Caves | Attracted the attention of an 0b10 outpost 16683 | -5/Proximity Caves | Reached level 23 16768 | -5/Proximity Caves | Destroyed 19 combat bots 16797 | -5/Proximity Caves | Discovered exit to Factory (range 17) 16804 | -5/Proximity Caves | Learned Factory trap positions 16833 | -5/Proximity Caves | Spotted B-75 Beast 16841 | -5/Proximity Caves | Destroyed B-75 Beast 16973 | -5/Proximity Caves | Ambushed by research squad 17217 | -5/Proximity Caves | Entered Factory 17217 | -5/Factory | Accompanied by 2 allies 17218 | -5/Factory | Identified exit to Upper Caves 17219 | -5/Factory | Identified exit to Factory 17220 | -5/Factory | Loaded intel: 69 trap records 17238 | -5/Factory | Garrison activated, responded to threat 17335 | -5/Factory | Destroyed 10 combat bots 17461 | -5/Factory | Reached level 24 17675 | -5/Factory | Fabricated Imp. Kinecellerator (x2) 17817 | -5/Factory | First assault squad dispatched 17830 | -5/Factory | Cargo convoy interrupted 17887 | -5/Factory | Destroyed 9 combat bots 17890 | -5/Factory | Upgraded with Propulsion slot (x1) 17900 | -5/Factory | Found Prototype Protection 17900 | -5/Factory | Identified Active Cooling Armor 17949 | -5/Factory | Garrison activated, responded to threat 17997 | -5/Factory | Unchained authorized (CL-0N3) 18193 | -5/Factory | T-07 Excavator reconstituted as Immortal 18193 | -5/Factory | Spotted Immortal 18287 | -5/Factory | Destroyed Immortal 18287 | -5/Factory | Immortal reconstituted as CL-0N3 18289 | -5/Factory | Spotted CL-0N3 18370 | -5/Factory | Garrison activated, responded to threat 18385 | -5/Factory | Core integrity fell below 50% 18494 | -5/Factory | Destroyed 13 combat bots 18635 | -5/Factory | K-01 Serf reconstituted as Cetus Guard 18635 | -5/Factory | Destroyed 8 combat bots 18635 | -5/Factory | Spotted Cetus Guard 18637 | -5/Factory | Cetus Guard reconstituted as CL-0N3 18654 | -5/Factory | Destroyed CL-0N3 18656 | -5/Factory | Extracted schematics, analyses from CL-0N3's data core 18657 | -5/Factory | Found Prototype Processor 18658 | -5/Factory | Identified Zeronet Interface 18691 | -5/Factory | Reached level 25 18749 | -5/Factory | Unchained authorized (V4-D3R) 19274 | -5/Factory | Spotted V4-D3R 19280 | -5/Factory | System corruption reached 10% 19297 | -5/Factory | Found Prototype Special Weapon 19297 | -5/Factory | Identified V4-D3R's Forcegen 19324 | -5/Factory | Garrison activated, responded to threat 19330 | -5/Factory | Core integrity fell below 20% 19341 | -5/Factory | Found Prototype Storage 19341 | -5/Factory | Identified V4-D3R's Forcewell 19342 | -5/Factory | Lost 5 parts (4p1u) 19349 | -5/Factory | Found Prototype Protection 19349 | -5/Factory | Identified Med. Regenerative Plating 19351 | -5/Factory | Found Prototype Protection 19351 | -5/Factory | Identified V4-D3R's Cape 19355 | -5/Factory | Found Prototype Slashing Weapon 19357 | -5/Factory | Found Prototype Device 19357 | -5/Factory | Identified Femtoactuators 19488 | -5/Factory | Identified V4-D3R's Sabre 19501 | -5/Factory | Destroyed 15 combat bots 19789 | -5/Factory | High security lockdown imminent 19820 | -5/Factory | Manually triggered Chute Trap 19820 | -5/Factory | Sucked down chute 19820 | -5/Factory | Entered Waste 19822 | -5/Waste | Spotted C-40 Crusher 19826 | -5/Waste | Spotted C-40 Crusher 19829 | -5/Waste | Warlord forces began an assault 19835 | -5/Waste | Allies destroyed C-40 Crusher 19843 | -5/Waste | Allies destroyed C-40 Crusher 19854 | -5/Waste | Spotted C-40 Crusher 19859 | -5/Waste | Spotted C-40 Crusher 19866 | -5/Waste | Allies destroyed C-40 Crusher 19868 | -5/Waste | Allies destroyed C-40 Crusher 19879 | -5/Waste | Spotted C-40 Crusher 19879 | -5/Waste | Spotted C-40 Crusher 19887 | -5/Waste | Allies destroyed C-40 Crusher 19891 | -5/Waste | Allies destroyed C-40 Crusher 19917 | -5/Waste | Lost 4 allies 20030 | -5/Waste | Found Prototype Launcher 20030 | -5/Waste | Identified Com. Tesla Bomb Launcher 20049 | -5/Waste | Discovered new exit (range 13) 20076 | -5/Waste | Identified exit to Factory 20309 | -5/Waste | Entered Factory 20309 | -5/Factory | Accompanied by 15 allies 20321 | -5/Factory | Garrison activated, responded to threat 20381 | -5/Factory | Spotted B-75 Beast 20389 | -5/Factory | Destroyed B-75 Beast 20431 | -5/Factory | Discovered exit to Factory (range 17) 20458 | -5/Factory | Unchained authorized (V4-D3R) 20590 | -5/Factory | Spotted V4-D3R 20606 | -5/Factory | Found V4-D3R's Sabre 20609 | -5/Factory | First assault squad dispatched 20629 | -5/Factory | Destroyed V4-D3R 20631 | -5/Factory | Found Prototype Processor 20631 | -5/Factory | Identified Exp. Melee Analysis Suite 20634 | -5/Factory | Lost 4 parts (4p) 20634 | -5/Factory | Found V4-D3R's Cape 20636 | -5/Factory | Found Femtoactuators 20651 | -5/Factory | Found Zeronet Interface 20688 | -5/Factory | Lost 8 allies 20698 | -5/Factory | High security lockdown imminent 20778 | -5/Factory | High security lockdown engaged 20794 | -5/Factory | Destroyed 23 combat bots 20889 | -5/Factory | Discovered exit to Upper Caves (range 12) 20938 | -5/Factory | Discovered exit to Upper Caves (range 3) 20943 | -5/Factory | Discovered exit to Factory (range 12) 21196 | -5/Factory | Reached level 26 21655 | -5/Factory | Discovered exit to Factory (range 7) 21721 | -5/Factory | Destroyed 7 combat bots 22062 | -5/Factory | Discovered exit to Factory (range 15) 22113 | -5/Factory | Garrison activated, responded to threat 22289 | -5/Factory | Destroyed 13 combat bots 22344 | -5/Factory | Sterilization system engaged 22344 | -5/Factory | Non-combat units ordered to evacuate 22416 | -5/Factory | Destroyed 21 combat bots 22444 | -5/Factory | Combat units ordered to evacuate 22511 | -5/Factory | Destroyed 13 combat bots 22644 | -5/Factory | Ambient heat levels rising (+10) 22681 | -5/Factory | Entered Upper Caves 22686 | -5/Upper Caves | Attracted the attention of an 0b10 checkpoint 22710 | -5/Upper Caves | Encountered a Warlord checkpoint 22739 | -5/Upper Caves | Attracted the attention of an 0b10 base 22755 | -5/Upper Caves | Learned Research security intel 22755 | -5/Upper Caves | Learned Armory garrison access intel 22768 | -5/Upper Caves | Destroyed 10 combat bots 22769 | -5/Upper Caves | Learned Factory terminal intel 22923 | -5/Upper Caves | Discovered new exit (range 14) 22926 | -5/Upper Caves | Identified exit to Upper Caves 23020 | -5/Upper Caves | Entered another Upper Caves area 23025 | -5/Upper Caves | Acquired the password to a Derelict Tinkerer's latest research 23220 | -5/Upper Caves | Build established: Scavenger-Scout 23223 | -5/Upper Caves | Caught by Unaware searching for contraband prototypes 23223 | -5/Upper Caves | Caught by Unaware searching for contraband prototypes 23252 | -5/Upper Caves | Discovered exit to Factory (range 9) 23364 | -5/Upper Caves | Attracted the attention of an 0b10 checkpoint 23419 | -5/Upper Caves | Discovered new exit (range 11) 23421 | -5/Upper Caves | Identified exit to Warlord 23434 | -5/Upper Caves | Destroyed 9 combat bots 23437 | -5/Upper Caves | Learned 12 Factory zone layouts 23437 | -5/Upper Caves | Learned Factory interactive machine intel 23476 | -5/Upper Caves | Destroyed 7 combat bots 23602 | -5/Upper Caves | Entered Warlord 23602 | -5/Warlord | Accompanied by 2 allies 23617 | -5/Warlord | Discovered new exit (range 14) 23685 | -5/Warlord | Received a Watcher feed algorithm from an ecstatic Tinkerer 23689 | -5/Warlord | Ran a Watcher feed algorithm 23735 | -5/Warlord | Warlord's base attacked by MAIN.C 23738 | -5/Warlord | Met EX-DEC 23793 | -5/Warlord | Met Warlord 23797 | -5/Warlord | Found Prototype Processor 23797 | -5/Warlord | Identified Spectral Analyzer 23800 | -5/Warlord | Found Prototype Device 23800 | -5/Warlord | Identified Exp. Cloaking Device 23868 | -5/Warlord | Spotted B-86 Titan 23905 | -5/Warlord | Destroyed B-86 Titan 23942 | -5/Warlord | Warlord forces counterattacked 23953 | -5/Warlord | Destroyed 7 combat bots 24027 | -5/Warlord | Lost 3 allies 24032 | -5/Warlord | Reached level 27 24052 | -5/Warlord | Spotted Striker 24052 | -5/Warlord | Spotted Striker 24053 | -5/Warlord | Destroyed 7 combat bots 24067 | -5/Warlord | Destroyed Striker 24135 | -5/Warlord | Spotted Striker 24154 | -5/Warlord | Identified exit to Proximity Caves 24235 | -5/Warlord | Spotted Executioner 24235 | -5/Warlord | Spotted Striker 24235 | -5/Warlord | Spotted B-86 Titan 24235 | -5/Warlord | Spotted Striker 24283 | -5/Warlord | Lost 6 allies 24335 | -5/Warlord | Spotted Executioner 24336 | -5/Warlord | Spotted Striker 24345 | -5/Warlord | Self-destructed Last Messages --------------- 24338_ V4-D3R's Sabre follow-up attack on G-50 Soldier. 24338_ Destroyed Carbon-fiber Leg. 24338_ G-50 Soldier destroyed. 24338_ R1-965(M) Barrage Gun blown off. 24338_ R1-965(M) Imp. Heat Sink blown off. 24338_ R1-965(M) Arm. Treads blown off. 24338_ R1-965(M) Med. Treads blown off. 24338_ E-15 Imp destroyed. 24338_ Slug penetrates Wall. 24339_ R1-965(M) destroyed. 24340_ Adv. Remote Datajack blown off. 24340_ Adv. Remote Datajack crushed and broken. 24340_ Mak. Ablative Armor blown off. 24340_ Mak. Ablative Armor crushed and broken. 24340_ V4-D3R's Forcegen blown off. 24340_ E-15 Imp destroyed. 24340_ P-80 Master resets Executioner, system corruption cleaned. 24341_ E-15 Imp destroyed. 24341_ Started Sapper Charge timer (8). 24343_ HO-8O4(M) destroyed. Map ----- +----------------------------------------------------+ | #?????????????????????????????????? | | #?????????????????????????????????? | | ##?????????????????????????????????? | | ???????????????????????????????????? | | ?????????????????????????????###???? | | ?????????????????????????????#=##??? | | ##???????????####????????????#%!###? | | #??????????## ##????????####%=*/#? | | #?????????## #???????##/%%!*[##? | | #?????????# #??????##!=[gpx==## | | #?????????# ##?????##==[=%g%g!!* | | #?????????# #?????#=![/!Kg%g%![ | | #?????????# ##????#=[=![Egi!### | | #?????????## g #???##=^%|l!gp##?? | | #??????????### ^##?##!!!g[[%!##??? | | ##????????????## #?# !![M![M=#???? | | ???????????????## #?# #[&g%m%##???? | | ????????????????# ####;!%=!%!##???? | | ????????????????# |! ![%%=%!=!###?? | | ????????????????## #;;=%M%]= ##? | | ?"???????????????## |**%!=/ " #? | | ""#???????????????#;;= [%###; #? | | ""#???????????????###[!/%%##; ##? | | ""#?????????????????## %==*=; % #?? | | ""###########???????##%[!%%!;# ##? | | ""# ## ## ##?????## ;! @//;#" #? | | "" # "#####?# #=M=%;#" ##? | | "" " """#####*==[ = ; ##?? | | "" % " ! #*###[!;#=! ##??? | | = %!%[#===!==%%l #???? | | %=!! %=%+%%/[ *%=%## #??? | | %% %[% %%%!%*=%!%==%### #??? | | %!=% ! !#%##= ! ###?# #??? | | "" """"" "##=##*! #???# ##?? | | "" """""""""""#?### #?### #?? | | "" "# ##########???#g ##?# # #?? | | ""#######???????????##b #?? l #?? | | ""#????????????????##g #??? #?? | | ""#????????????????# ##??? g ##?? | | ""#???????????????## ##???? M #??? | | ""#???????????????# #????? ##??? | | ??????????????????# #????? #???? | | ??????????????????# ##????? #???? | | ??????????????????#^ #??????# ##??? | | ?????????????????## ##????## #??? | | ????????????????## ##??## #??? | | ????????????????# ##?# #??? | | ????????????##### ## ### #??? | | ???????????## # #### ## #??? | | ##?????????# #?## ## #??? | +----------------------------------------------------+ Best States ------------- Heat Dissipation 163 Energy Generation 41 Energy Capacity 1160 Matter Stores 300 Matter Capacity 300 Sight Range 26 Robot Scan Range 38 Terrain Scan Density 10 Jamming Range 14 Cloak Strength 4 Power Amplification 20 Additional Mass Support 16 EM Shielding 4 Armor Coverage 900 Projectile Deflection 50 Weapon Cycling 30 Melee Speed Boost 50 Evasion (%) 80 Melee Accuracy 12 Core Analysis 6 Matter Filtering 30 Kinecelleration 30 Salvage Targeting 4 Offensive Hacking 10 Defensive Hacking 5 Item Schematics ----------------- Med. Battery | -9/Materials | Extracted Targeting Computer | -9/Materials | Extracted Rocket Launcher | -9/Materials | Extracted Disposable Heat Sink | -9/Materials | Extracted Enh. Autogun | -8/Materials | Scanalyzed Lgt. Nuclear Core | -8/Materials | Extracted Titanium Leg | -8/Materials | Extracted Adv. Weight Redist. System | -8/Materials | Extracted Terrain Scan Processor | -8/Materials | Extracted Hvy. Assault Rifle | -8/Materials | Extracted Combat Drone Bay | -7/Data Miner | Free Exp. Targeting Computer | -7/Data Miner | Free Lgt. Regenerative Plating | -7/Data Miner | Free Biomechanical Wings | -7/Data Miner | Free Force Rifle | -7/Data Miner | Free Thunder Leg | -7/Data Miner | Free Imp. Plasma Cutter | -7/Data Miner | Free Lrn. Tractor Beam | -7/Data Miner | Free Matter Neutralizer | -7/Data Miner | Free Hvy. Gauss Cannon | -7/Data Miner | Free Cmb. Gravmag System | -7/Data Miner | Free Hpw. Shock Rifle | -6/Zion | Archive Wave Gun | -6/Zion | Archive Power Amplifier | -6/Zion | Archive Imp. Kinecellerator | -6/Zion | Archive Imp. Recalibrator | -6/Zion | Archive Focal Shield | -6/Zion | Archive Adv. Coolant Injector | -6/Zion | Archive Imp. Focal Shield | -6/Zion | Archive Drone Bay | -6/Zion | Archive Stasis Canceller | -6/Zion | Archive Adv. Recoil Stabilizer | -6/Zion | Archive Imp. Corruption Screen | -6/Zion | Archive Matter Compressor | -6/Zion | Archive Adv. Thermal Generator | -6/Zion | Archive Robot Schematics ------------------ X-67 Chaingunner | -7/Data Miner | Free D-53 Grenadier | -7/Data Miner | Free B-48 Gladiator | -7/Data Miner | Free M-22 Extractor | -7/Data Miner | Free A-15 Conveyor | -7/Data Miner | Free A-02 Transporter | -6/Zion | Archive K-01 Serf | -5/Factory | Archive T-07 Excavator | -5/Factory | Archive R-06 Scavenger | -5/Factory | Archive R-10 Processor | -5/Factory | Archive M-14 Sweeper | -5/Factory | Archive M-30 Cleanser | -5/Factory | Archive M-13 Machinist | -5/Factory | Archive M-28 Smith | -5/Factory | Archive M-36 Artificer | -5/Factory | Archive O-16 Technician | -5/Factory | Archive O-24 Administrator | -5/Factory | Archive O-32 Director | -5/Factory | Archive W-16 Scout | -5/Factory | Archive W-25 Informer | -5/Factory | Archive W-44 Eye | -5/Factory | Archive S-10 Pest | -5/Factory | Archive S-27 Virus | -5/Factory | Archive S-43 Plague | -5/Factory | Archive G-34 Mercenary | -5/Factory | Archive G-47 Trooper | -5/Factory | Archive G-50 Soldier | -5/Factory | Archive G-67 Veteran | -5/Factory | Archive G-73 Enforcer | -5/Factory | Archive B-36 Bruiser | -5/Factory | Archive B-60 Warrior | -5/Factory | Archive B-74 Champion | -5/Factory | Archive L-31 Rogue | -5/Factory | Archive L-41 Fighter | -5/Factory | Archive L-61 Swordsman | -5/Factory | Archive Y-45 Defender | -5/Factory | Archive Y-54 Guardian | -5/Factory | Archive Y-64 Sentinel | -5/Factory | Archive Y-72 Warden | -5/Factory | Archive D-63 Destroyer | -5/Factory | Archive D-83 Annihilator | -5/Factory | Archive X-57 Shotgunner | -5/Factory | Archive X-62 Marksman | -5/Factory | Archive X-72 Disruptor | -5/Factory | Archive X-77 Beamer | -5/Factory | Archive X-82 Rainmaker | -5/Factory | Archive X-87 Electro | -5/Factory | Archive H-55 Commando | -5/Factory | Archive H-66 Slayer | -5/Factory | Archive H-77 Assassin | -5/Factory | Archive H-88 Terminator | -5/Factory | Archive P-60 Hacker | -5/Factory | Archive P-70 Sage | -5/Factory | Archive P-80 Master | -5/Factory | Archive Fabricated ------------ Enh. Autogun | x1 | -7/Factory Enh. Autogun | x1 | -7/Factory Imp. Kinecellerator | x2 | -5/Factory Repaired ---------- Nothing Studied --------- Minigun | -8/Materials | Hacked Alien Tech Used ----------------- None Achievements -------------- Analysis Probe Fishing Tech Physics Protects Challenges ------------ None RPGLIKE | -11 -10 -10 -9 -9 -9 -8 -8 -8 -8 -8 -8 -7 -7 -7 -7 -7 -7 -6 -6 -6 -6 -6 -6 -6 -5 -5 -5 -5 -5 -5 -5 --------- Run | Yrd Mat Min Mat Min Exi Min Mat Gar Mat Gar Mat Fac Was Fac Low Low Dat Pro Fac Was Fac Low Low Zio Pro Fac Was Fac Upp Upp War Levels Raised 26 | . 4 . 5 1 . . 3 1 . 1 1 . . 2 . 1 . . 1 . 1 . . . 1 2 . 1 . . 1 XP Earned 42090 | 3000 6023 750 7680 715 46 1005 3515 1435 1097 551 1223 867 54 2958 320 264 50 819 1016 35 1300 72 98 57 1582 2858 22 2000 175 181 322 XP Spent 40020 | 3000 5700 . 7750 1500 . . 2650 700 2650 800 . . . 4975 . . . . 3275 . 400 . . . 1700 3520 . 500 . . 900 Upgrades 69 | 8 12 . 7 2 . . 2 2 6 3 . . . 8 . . . . 4 . 2 . . . 2 7 . 2 . . 2 Power Slot 1 | . . . . 1 . . . . . . . . . . . . . . . . . . . . . . . . . . . Propulsion Slot 4 | 1 1 . 1 . . . . . . . . . . . . . . . . . . . . . . 1 . . . . . Utility Slot 8 | 1 1 . 2 . . . . . 1 . . . . 2 . . . . 1 . . . . . . . . . . . . Weapon Slot 3 | 1 2 . . . . . . . . . . . . . . . . . . . . . . . . . . . . . . Core Integrity 2 | . . . . . . . . . . . . . . . . . . . . . . . . . . 2 . . . . . Heat Dissipation 13 | 1 4 . . . . . . . 5 . . . . . . . . . . . . . . . . 3 . . . . . Energy Generation 2 | . 1 . . . . . 1 . . . . . . . . . . . . . . . . . . . . . . . . Mass Support 5 | 2 . . 2 . . . 1 . . . . . . . . . . . . . . . . . . . . . . . . Inventory Capacity 5 | 2 . . 1 1 . . . . . . . . . . . . . . . . . . . . . 1 . . . . . Sight Range 2 | . . . . . . . . . . . . . . . . . . . . . 2 . . . . . . . . . . Sensor Range 9 | . . . . . . . . . . . . . . 6 . . . . 3 . . . . . . . . . . . . Ranged Accuracy 6 | . 3 . 1 . . . . . . . . . . . . . . . . . . . . . 2 . . . . . . Melee Accuracy 4 | . . . . . . . . . . . . . . . . . . . . . . . . . . . . 2 . . 2 Hack Attack % 2 | . . . . . . . . . . 2 . . . . . . . . . . . . . . . . . . . . . Hack Defense % 1 | . . . . . . . . . . 1 . . . . . . . . . . . . . . . . . . . . . KI Damage % 2 | . . . . . . . . 2 . . . . . . . . . . . . . . . . . . . . . . . Protomatter Created 17151 | . 347 34 918 200 . 32 710 483 365 439 1362 296 . 1894 529 498 . 148 292 89 704 107 124 . 586 2350 . 3058 436 204 946 Integrity Restored 21953 | . 633 248 691 337 . 160 1085 824 764 424 620 220 139 2658 231 234 . 315 489 51 1861 444 290 . 920 3897 518 2624 99 115 1062 Core 16036 | . 516 166 449 189 . 78 744 613 610 209 432 133 98 1901 173 183 . 281 384 51 1344 444 147 . 783 2884 264 2015 73 85 787 Parts 5917 | . 117 82 242 148 . 82 341 211 154 215 188 87 41 757 58 51 . 34 105 . 517 . 143 . 137 1013 254 609 26 30 275 Protomatter Decayed 8979 | . 58 37 788 241 . 39 241 64 260 142 983 172 . 770 245 474 . 41 162 . 221 . 36 . 231 765 127 1885 246 202 549 Game ------ Seed ClaymoresMicroChargecaster Manual? 0 Play Time 06:08:34 Cumulative 638.0 hours Start 2026.06.30 @ 11:12:40 End 2026.07.03 @ 12:32:02 Sessions 15 Manual Loads 0 Difficulty Rogue Special Mode Winter2019/RPGLIKE Game No. 248 Rogue 94 Adventurer 154 Explorer 0 Win Type - Total 21 Types 4/4/4/3/2/1/0/1/1/1 Lore% 95 Gallery% 88 Achievement% 62 Wizard Run 0 Options --------- Layout 0 ASCII 0 Keyboard 0 Movement Numpad Keybinds 0 Fullscreen 2 Font 18/SmallcapsGlow Map View 76x50 Zoom Use 0% Tactical HUD 1 Map Filters NONE Filters NONE Steam 1 RUN: 49266208-feb8-49d5-8cb6-653c86e1eea1